{"text_format":"1","workbook":"xlsx","n_sheets":2,"sheets":["Contratos","Plan1"],"not_rendered":{"charts":0,"images":2,"macros":1,"external_links":0,"defined_names":2,"comments":0,"pivot_tables":0},"unopened":[],"bounds":{"document_bytes":16777216,"sheet_cells":100000,"rows_first":2000,"rows_last":500,"rows_between":2000,"halvings":0,"cell_chars":16384,"cell_head_chars":4096},"cells_cut":0,"cells_raw":0,"read":"whole","date_system":"1900"}

{"sheet":"Contratos","index":0,"n_rows":353,"n_cols":29,"rows_kept":353,"cut":false,"hidden":false,"merged":[[0,28,1,29],[0,2,1,26],[2,23,2,25],[2,13,2,15],[0,0,1,1]]}
[null,null,"                                                                       PLANILHA DE CONTRATOS DE AQUISIÇÃO, ALUGUEL E PRESTAÇÃO DE SERVIÇOS",null,null,null,null,null,null,null,null,null,null,null,null,null,null,null,null,null,null,null,null,null,null,null,null,"CCD.: 035.1"]
[null,null,null,null,null,null,null,null,null,null,null,null,null,null,null,null,null,null,null,null,null,null,null,null,null,null,null,"FPOP-G.GPO.CCO-01 VERSÃO \n05 JANEIRO/2019"]
[null,null,null,null,null,null,null,null,null,null,null,null,null,"Atualizada em ",null,null,null,null,null,null,null,null,null,null,null,null,null,"Atualizada em ","2024-09-06"]
["Nº","CONTRATO PORTAL","NÚMERO SEI","CONTRATADO","OBJETO DO CONTRATO","COMODATO","APÓLICE/GARANTIA DA EXECUAÇÃO ","DATA INICIAL DO CONTRATO","DATA FINAL/ TOTAL DA CONTRATAÇÃO","DATA INICIAL DO ÚLTIMO TERMO ADITIVO","DATA FINAL DO ÚLTIMO TERMO ADITIVO","MÊS DE REFERÊNCIA PARA EMISSÃO DO AVISO","ANO DE REFERÊNCIA PARA EMISSÃO DE AVISO","VALOR MENSAL","VALOR TOTAL","SIGLA SETOR","RESPONSÁVEL TÉCNICO","FISCAL","FISCAL SUPLENTE","GESTOR","GESTOR SUPLENTE","SIGED","Colunas1"]
["9410.283/24",9410283,"2320.01.0012356/2023-68","A&M Solution Agencia Digital Ltda","Prestação de serviço de Manutenção e Suporte do Portal Hemominas (Site e Intranet).","Não",null,"2024-02-22","2029-02-21","2025-02-22","2026-02-21","02","2026",{"$f":"O5/12","v":23583.179999999997},282998.15999999997,"I.GTC.ADS         I.GTC",null,"Juan Pablo Figueiredo Silva","Adriana Lúcia dos Santos","Emilene Gomes e Silva","Marcela Soares Ferreira","SEI"]
[" 9293.818/21",9293818,"2320.01.0013616/2021-04","AACP SERVIÇO AMBIENTAL EIRELI","Prestação de Serviço de limpeza e tratamento de caixas de água e reservatórios (Lotes 02 e 04)","Não",null,"2021-10-16","2026-10-15","2024-10-16","2025-10-15","10","2025",472.33,"5.668,00 ","JFO.A.MAT            GOV.A.MAT          I.GIF.MPR",null,"Fernando dos Santos Henriques/Deivandro Lessa","Márcio Rinco Rocha/Bruno Sousa Macedo"," Marisa de Lima Marques Nogueira","Renata Azzi Júdice","SEI"]
["9369.083/23",9369083,"2320.01.0016834/2022-27","AACP Serviço Ambiental Eireli","Prestação de serviços de análise e monitoramento da qualidade da água nas edificações utilizadas pela Fundação Hemominas (Lotes 02 a 08).","Não",null,"2023-03-01","2028-02-28","2025-03-01","2026-02-28","02","2026",{"$f":"O7/12","v":4237.291666666667},50847.5,"I.GIF.AQE",null,"Jéssica Rodrigues Barbosa","Dirceu Alves Jácome Junior"," Maycon do Vale Silva","Marcela Soares Ferreira","SEI"]
["9453.558/25",9453558,"2320.01.0000944/2025-17","Abbott Laboratórios do Brasil Ltda","Aquisição de reagentes para triagem sorológica de doadores.","Não",null,"2025-03-03","2025-09-02",null,null,"09","2025",null,5456160,"T.GLA.CSO",null,"Sônia Mara Nunes da Silva","Leonardo Antônio Renna Batalha","Lizziane d'Ávila Pereira","Marcela Soares Ferreira","SEI"]
["9400.454/23",9400454,"2320.01.0011240/2023-33","ABHH - Associação Brasileira de Hematologia, Hemoterapia e Terapia Celular","Contratação dos serviços de Auditoria e Assessoria do Programa de Acreditação da ABHH & AABB para acreditação do serviço de Terapia Celular no Centro de Tecidos Biológicos de Minas Gerais - CETEBIO.","Não",null,"2023-12-08","2025-12-07","-",null,"12","2025",5672.8083333333334,68073.7,"PRE.AAE",null,"Diogo Wanis Lara","Jussara Cristina Barbosa","Emilene Gomes e Silva","Marcela Soares Ferreira","SEI"]
["9428.626/24",9428626,"2320.01.0003370/2024-90","ABHH – ASSOCIAÇÃO BRASILEIRA DE HEMATOLOGIA, HEMOTERAPIA E TERAPIA CELULAR","contratação dos serviços de AUDITORIA e ASSESSORIA do Programa de Acreditação da ABHH & AABB para acreditação do serviço de Banco de Sangue e Transfusão no Hemocentro de Belo Horizonte","Não",null,"2024-06-07","2026-06-06","-",null,"06","2026",6787.56,86000.46,"PRE.AAE",null," Diogo Wanis Lara","Jussara Cristina Barbosa","Maycon do Vale Silva","Lizziane d'Ávila Pereira","SEI"]
["9388.538/23",9388538,"2320.01.0000097/2023-97","ACI Comércio Ltda - EPP","Prestação de serviço de manutenção, reparo, conservação e adaptação em equipamentos e instrumentos odontológicos,.","Não",null,"2023-06-17","2028-06-16","2025-06-17","2026-06-16","06","2026",{"$f":"O11/12","v":1811.63},21739.56,"GAD.JFO.A.COM",null,"Paulo Henrique Gomes Souza","Vitor Valente Campos","Marcela Soares Ferreira","Marisa de Lima Marques Nogueira","SEI"]
["9393.310/23",9393310,"2320.01.0006171/2023-29","ACTS do Brasil Ltda","Aquisição de Bolsas para congelamento de células progenitoras (lote 01).","Não",null,"2023-09-02","2028-09-01","2024-09-02","2025-09-01","09","2025","-",1352133.6,"CETEBIO.G. EXECUTIVA",null,"Maria Lúcia Soares de Moura","Thiago Jocides Arruda Batista","Marisa de Lima Marques Nogueira","Marcela Soares Ferreira","SEI"]
["9438.010/24",9438010,"2320.01.0008054/2024-13","ACTS do Brasil Ltda","Aquisição de Frascos de Dimetilsulfóxido.","Não",null,"2024-09-27","2025-09-26","-",null,"09","2025","-",426394.8,"CETEBIO / G.GTCE / CPC",null,"Maria Lúcia Soares de Moura","Luciana de Almeida Costa","Maycon do Vale Silva","Lizziane d'Avila Pereira","SEI"]
["9452.470/25",9452470,"2320.01.0007936/2024-95","ADDLIFE DIAGNÓSTICOS LTDA - EPP","Aquisição de conjunto completo para pesquisa de anticorpos/antígeno para HBsAg, anti-/HBC, anti-HCV, anti-HTLV I/II, anti-HIV 1+2 e subtipo O, Sífilis e Chagas, para realização de testes confirmatórios de soroconversão em amostras de doadores de sangue, com equipamento em comodato.","Sim",null,"2025-02-28","2026-02-27",null,null,"02","2026",null,409104,"T.GLA.CSO",null,"Leonardo Antônio Renna Batalha","Sônia Mara Nunes da Silva","Lizziane d'Avila Pereira","Marcela Soares Ferreira","SEI"]
["3459/14",3459,"2320.01.0001306/2018-61","Administradora Metrópole - Administração e Corretagem de Imóveis Ltda","Locação de 01 (um) imóvel situado na Rua Grão Pará, nº 882 - Santa Efigênia, Belo Horizonte/MG, composto de hall de entrada, 02 (dois) pavimentos de garagem, pilotis e salas do 4º ao 8º andares, totalizando área de aproximadamente, 3.856,16 m².","Não",null,null,null,"2025-04-25","2026-04-24","04","2026",{"$f":"O15/12","v":100208.17},1202498.04,"DGI.NZL","Adilson Meireles Pacheco","Marcelo de Aguiar Gomes","Maria Beatriz Souza Melo Sarsur","Marcela Soares Ferreira","Adriana Aparecida Tavares Diniz","SEI"]
["9389.826/23",9389826,"2320.01.0001219/2023-67","Agência de Integração Empresa Escola Ltda.","Prestação de serviço de  gestão de estagiários para a Fundação Hemominas.","Não",null,"2023-07-14","2028-07-13","2024-07-14","2025-07-13","07","2025",267643.88333333336,3211726.6,"G.GGP.TDE",null,"Manuela Mota Hauck","Andréa Maria Almeida Medrado","Marisa de Lima Marques Nogueira","Marcela Soares Ferreira","SEI"]
["9470.024/25",9470024,"2320.01.0008301/2025-34","Agenes S. da Silva Suprimentos de Informática - ME.","Compra de equipamentos técnicos (lotes 08 e 09).","Não",null,"2025-06-13","2026-06-12",null,null,"06","2026",null,36480,"DGI.ENC.CAT",null,"Asaph Calazans Mendes de Souza","Manoel Ricardo Caires Fernandes","Anna Luíza Leandro Fernandes Moreira","Marcela Soares Ferreira","SEI"]
["9470.713/25",9470713,"2320.01.0009096/2025-06","Agropecuária Fazenda do Bento Ind. E Com. Ltda.","Compra de café torrado e moído e açúcar cristal (lote 01).","Não",null,"2025-06-24","2026-06-23",null,null,"06","2026",null,333760,"DGI.NZL",null,"Marcelo de Aguiar Gomes","Nilza de Melo Pereira","Anna Luíza Leandro Fernandes Moreira","Marcela Soares Ferreira","SEI"]
["9442.796/24",9442796,"2320.01.0006876/2024-03","Alcides Pires Gomes 60867914653 - ME.","Prestação de Serviço de manutenção e limpeza de jardins e de corte e/ou poda de árvores, contempando o replantio com fornecimento de plantas e gramas nas áreas vegetadas do Hemonúcleo de Divinópolis.","Não",null,"2024-11-28","(COTEP)","-",null,"11","2025",null,11869.96,"DIV/GAD",null,"Nilba Valéria Pinheiro de Oliveira","Nayara Suélem Silva","Marcela Soares Ferreira","Lizziane d'Avila Pereira","SEI"]
["9344.035/22",9344035,"2320.01.0003079/2022-96","Allegra Tecnologia Ltda - ME","Prestação de serviço de monitoramento da qualidade do ar do Hemocentro Regional de Juiz de Fora da Fundação Hemominas.","Não",null,"2022-07-13","(COTEP)","2024-07-13","2025-07-12","07","2025",441.64249999999998,5299.71,"GAD.JFO",null,"Victor Valente Campos","Victor Valente Campos","Dallila Rodrigues Júlia","Marcela Soares Ferreira","SEI"]
["9350.488/22",9350488,"2320.01.0009625/2022-88","Allegra Tecnologia Ltda - ME","Prestação de serviço de higienização e limpeza do sistema de climatização/difusores para insuflamento e retorno do ar climatizado ambiente.","Não",null,"2022-11-18","2027-11-17","2024-11-18","2025-11-17","11","2025",1999.25,23991,"DGI.ENC",null,"João Silvestre Guimarães Gonçalves"," Alexandre Vitor da Silva"," Maycon do Vale Silva","Marcela Soares Ferreira","SEI"]
["9398.952/23",9398952,"2320.01.0005246/2023-75","Allegra Tecnologia Ltda - ME","Prestação de serviço de monitoramento da qualidade do ar.","Não",null,"2023-11-10","(COTEP)","2024-11-10","2025-11-09","11","2025",620.03499999999997,7440.42,"GAD.MOC.A.COM",null,"Daniel Nascimento Salgado","Nátaly Mariana Silva","Emilene Gomes e Silva","Marcela Soares Ferreira","SEI"]
["9470.562/25",9470562,"2320.01.0008887/2025-23","Allegra Tecnologia Ltda","Contratação de servilos de monitoramento da qualidade do ar nas unidades da Fundação Hemominas em Uberlândia e Lagoa Santa (lotes 01 e 03).","Não",null,"2025-06-18","2035-06-17",null,null,"06","2026",null,21420,"DGI.ENC",null,"Felipe Garabini Antunes","João Silvestre Guimarães Gonçalves","Anna Luíza Leandro Fernandes Moreira","Marcela Soares Ferreira","SEI"]
["9376.857/23",9376857,"2320.01.0014342/2022-90","Amazonas Comércio de Adesivos e Brindes Ltda - ME","Prestação de serviço de confecção e fornecimento de cartão-crachá eletrônico, computadorizado e cartão eletrônico.","Não",null,"2023-03-17","(COTEP)","2025-03-17","2026-03-16","03","2026",483.75,5805,"G.GGP.PES    G.GGP. PES.FREQUENCIA",null,"Sibéria Oliveira da Cruz","Tiago Paulo da Silva Jorge","Dallila Rodrigues Júlia","Marcela Soares Ferreira","SEI"]
["9437.084/24",9437084,"2320.01.0012016/2024-30","AMAZÔNIA INDÚSTRIA E COMÉRCIO LTDA."," Aquisição de lanche de doador LOTES 03 E 09","Não",null,"2024-08-27","2029-08-26","-",null,"08","2025","-",896500,"T.GSA                  T.GSA.SUP",null,"Lorena Prezotti Rodrigues","Juliana Pessoa Pinheiro de Azevedo","Marcela Soares Ferreira","Júlia Carolina Soares","SEI"]
["9361.880/22",9361880,"2320.01.0009734/2022-55","Ambientalis Análises de Ambientes Ltda EPP - ","Prestação de serviço de análise da qualidade do ar proveniente dos sistemas de climatização do Hemocentro de Belo Horizonte.","Não",null,"2022-12-02","2027-12-01","2024-12-02","2025-12-01","12","2025",{"$f":"O26/12","v":466.99},5603.88,"DGI.ENC",null,"João Silvestre Guimarães Gonçalves","Alexandre Vitor da Silva","Maycon do Vale Silva","Marcela Soares Ferreira","SEI"]
["9408.763/24",9408763,"2320.01.0013783/2023-48","Ambientalis Análises de Ambientes Ltda.","Prestação de serviço de monitoramento da qualidade do ar no CETEBIO da Fundação Hemominas.","Não",null,"2024-01-27","2029-04-26","2025-01-27","2025-04-26","04","2025",{"$f":"O27/12","v":3551.4666666666667},42617.599999999999,"CETEBIO.G. EXECUTIVA",null,"Maria Lúcia Soares de Moura","André Rolim Belisário","Emilene Gomes e Silva","Marcela Soares Ferreira","SEI"]
["9324.056/22",9324056,"2320.01.0010616/2021-09","Ambiente Ar Condicionado Eireli","Prestação de serviço de manutenção preventiva e corretiva de equipamentos de ar condicionado do Hemonúcleo de São João Del Rei, incluindo fornecimento de peças.","Não",null,"2022-02-25","2027-02-24","2025-02-25","2026-02-24","02","2026",{"$f":"O28/12","v":1898.3333333333333},22780,"SJR.A.MAT",null,"Adauto Rocha dos Santos","Tânia Mara da Silveira Santos","Marisa de Lima Marques Nogueira","Renata Azzi Júdice","SEI"]
["9459.809/25",9459809,"2320.01.0008283/2024-38","Ambiente Ar Condicionado Ltda.","Manutenção dos equipamentos de ar condicionado do Hemocentro de Montes Claros.","Não",null,"2025-04-11","2035-04-10",null,null,"04","2030",null,261340,"MOC.GAD",null,"Daniel Nascimento Salgado","Emanuelle Aparecida Bruzinga Machado","Marcela Soares Ferreira",null,"SEI"]
["9459.556/25",9459556,"2320.01.0008477/2024-38","Amplie Assessoria em Licitações Ltda.","Prestação de serviços de licença de software windows.","Não",null,"2025-04-08",null,null,null,"04","2026",null,45000,"I.GTC.ITS",null,"Fabrine Juliana Fabricio Costa","Daniel Eustáquio Coutinho","Marcela Soares Ferreira",null,"SEI"]
["9317.954/21",9317954,"2320.01.0016981/2021-38","Analítica Ltda","Aquisição de reagente para imuno-hematologia (Bromelina, lote 1) e detergente alcalino (lote 9).","Não",null,"2021-12-29","2026-12-28","2024-12-29","2025-12-28","12","2025","-",49000,"T.GLA.CSI                      T.GLA.CIH.DOA",null,"Mary Cristiany Silva Menezes","Dirceu Albino Junior ","Renata Azzi Júdice","Marisa de Lima Marques Nogueira","SEI"]
["9261.668/20",9261668,"2320.01.0007269/2020-74","Apolo Refrigeração Ltda","Prestação de serviço de manutenção em equipamentos de refrigeração, com fornecimento de peças.","Não ",null,"2020-11-04","2025-11-03","2024-11-04","2025-11-03","11","2025",null," 264.603,01","DGI.ENC",null,"Thiago Euzébio dos Santos","Alexandre Vitor da Silva",null,null,"SEI"]
["9287.970/21",9287970,"2320.01.0010249/2021-24","Apolo Refrigeração Ltda","Prestação de serviço de manutenção preventiva e corretiva, e higienização do sistema de ar condicionado do CETEBIO - Lagoa Santa (Lote 01).","Não ",null,"2021-08-04","2026-08-03","2024-08-04","03/08/2025","08","2025",{"$f":"O33/12","v":29639.217499999999},355670.61,"CETEBIO.G. EXECUTIVA","Maria Lúcia Soares de Moura","Maria Lúcia Soares de Moura","Antônio Ferreira de Oliveira Filho","Marcela Soares Ferreira","Adriana Aparecida Tavares Diniz","SEI"]
["9393.609/23",9393609,"2320.01.0001032/2022-75","Apolo Refrigeração Ltda","Prestação de serviços de Manutenção preventiva e corretiva em equipamentos de ar condicionado, com fornecimento de peças para o Hemocentro Regional de Uberlândia da Fundação Hemominas.","Não ",null,"2023-09-30","2028-09-29","2024-09-30","2025-09-29","09","2025",14251.359166666667,171016.31,"GAD.UDI",null,"Márcia Regina Luis","Renata Léa Silva Souza","Marcela Soares Ferreira","Marisa de Lima Marques Nogueira","SEI"]
["9277.444/21",9277444,"2320.01.0016318/2020-94","Apolo Refrigeração Ltda - EPP","Prestação de serviço de manutenção preventiva e corretiva em ar condicionado split de janela, incluindo fornecimento de peças.","Não ",null,"2021-05-05","2026-05-04","2025-05-05","2026-05-04","05","2026",5657.0716666666667,67884.86,"DGI.ENC","Thiago Euzébio dos Santos","Thiago Euzébio dos Santos",null," Adriana Aparecida Tavares Diniz","Dallila Rodrigues Júlia","SEI"]
["9321.239/22",9321239,"2320.01.0011069/2021-97","Apolo Refrigeração Ltda - ME","Prestação de serviço de manutenção de ar condicionado e limpeza da rede de dutos.","Não ",null,"2022-02-03","2027-02-02","2025-02-03","2026-02-02","02","2026",6871.8975,82462.77,"GAD.SLA",null,"Marco Paulo Dias Canabrava","Neide Aparecida dos Santos Reis Gonçalvez","Marisa de Lima Marques Nogueira","Renata Azzi Júdice","SEI"]
["9430.426/24",9430426,"2320.01.0009813/2023-53","Apolo Refrigeração Ltda - ME","Prestação de Serviço de Manutenção e Limpeza em Sistema de Ar Condicionado, no Centro de Tecidos Biológicos - CETEBIO, da Fundação Hemominas, que deve ser executado conforme condições do Termo de Referência (87663842)","Não ",null,"2024-07-01","2029-06-30","2025-07-01","2026-06-30","06","2026",12666.481666666667,151997.78,"CETEBIO / G.GTTE",null,"Antônio Ferreira de Oliveira Filho","Maria Lúcia Soares de Moura","Maycon do Vale Silva"," Lizziane d'Ávila Pereira","SEI"]
["9400.368/23",9400368,"2320.01.0004846/2023-11","Argus Científica Ltda","Aquisição de reagente Ferritina com comodato.","Sim",null,"2023-11-23","2028-11-22","2024-11-23","2025-11-22","11","2025","-",108640,"HBH.T.LHEM",null,"Beatriz Nogueira de Carvalho APOSENTOU","João Henrique Fonseca de Moura","Lizziane d'Ávila Pereira","Emilene Gomes e Silva","SEI"]
["9430.023/24",9430023,"2320.01.0015881/2023-50","Argus Científica Ltda"," Aquisição de sistema analítico completo, com equipamento em comodato e reagentes ferro sérico e capacidade ligadora de ferro.","Sim",null,"2024-06-24","2034-06-23","2025-06-24","2026-06-23","06","2026","-",85280,"HBH.T.LHEM",null,"Beatriz Nogueira de Carvalho APOSENTOU","\tJoão Henrique Fonseca de Moura","Lizziane d'Ávila Pereira","\tMaycon do Vale Silva","SEI"]
["9245.613/20",9245613,"2320.01.0017803/2019-63","Associação Profisionalizante do Menor de Belo Horizonte - ASSPROM","Prestação de serviço de apoio em atividades administrativas","Não",null,"2020-04-01","2026-03-31","2025-04-01","2026-03-31","03","2026",{"$f":"O40/12","v":51768.920000000006},621227.04,"G.GGP","Andrea Maria Almeida Medrado","Erica Antunes Coelho",null,null,null,"SEI"]
["9262.654/20",9262654,"2320.01.0007239/2020-11","Atenas Elevadores Ltda","Prestação de Serviço de  manutenção preventiva e corretiva em elevador e plataforma elevatória - Unidade Uberaba","Não",null,"2020-10-02","2025-10-01","2024-10-02","2025-10-01","10","2025",{"$f":"O41/12","v":3666.6666666666665},44000,"GAD.URA","Thiago Euzébio dos Santos","Leila Pereira","Lúcia de Fátima Oliveira","SOLICITAR","SOLICITAR","SEI"]
["9439.966/24",9439966,"2320.01.0014470/2024-23","Auto Serviço Santo Agostinho Ltda","Aquisição gêneros alimentícios para lanche diário do doador de sangue do Hemonúcleo de São João del Rei.","Não",null,"2024-10-08","2034-10-07","-",null,"10","2025",null,51479.68,"SJR.A.COM",null,"Adauto Rocha dos Santos (SJR.A.COM).","Tânia Mara da Silveira Santos","Marcela Soares Ferreira","Júlia Carolina Soares","SEI"]
["9434.062/24",9434062,"2320.01.0003406/2024-88","B & F LAVAGEM AUTOMOTIVA E PREDIAL LTDA. - ME","aquisição de Serviços de higienização e limpeza dos veículos utilizados pelo HEMOMINAS ","Não",null,"2024-07-31","2025-07-30","-",null,"07","2025",{"$f":"O43/12","v":4370},52440,"G.GLQ.PRT.TRANSPORTE",null,"Pablo Ruas dos Santos","Anastas Falcão Quirino Chaves","Maycon do Vale Silva","Marcela Soares Ferreira","SEI"]
["9437.071/24",9437071,"2320.01.0004945/2024-51","Baghetti Pães e Confeitaria Eireli                              TERMO DE RESCISÃO A PARTIR DE 08/05/2025. PUBLICAÇÃO 24/05/2025.","Aquisição de produtos alimentícios para lanche dos doadores e prestação de serviços para organização e execução de evento para Solenidade de diplomação dos Doadores de Sangue da Fundação Hemominas, Hemonúcleo de Ituiutaba.","Não",null,"2024-08-28","2034-07-30","-",null,"08","2025",null,81040,"GAD.ITU",null,"Márcia de Freitas Borges Silva                                 Lúcia de Fátima Oliveira","Marcella Ferreira de Alcântara Verassan","Marcela Soares Ferreira","Júlia Carolina Soares","SEI"]
["9437.652/24",9437652,"2320.01.0014994/2023-40","Baltazar Ribeiro Rodrigues 09314213650 - ME","Prestação de Serviço de manutenção preventiva e corretiva em aparelhos de ar condicionado, incluindo fornecimento de peças - Hemonúcleo de Patos de Minas da Fundação Hemominas.","Não",null,"2024-09-23","2029-09-22","-",null,"09","2025",null,49685.32,"PMI.GAD",null,"Nilza Canêdo de Magalhães","Heleno de Lima Marques","Marcela Soares Ferreira","Júlia Carolina Soares","SEI"]
["9445.819/24",9445819,"2320.01.0008959/2024-22","Barros Bittencourt Empreendimentos Ltda","Prestação de Serviço de reforma e adequação em instalações prediais, estruturais e em sistema de prevenção e combate a incêndio (AVCB) da edificação do CETEBIO/HEMOMINAS em Lagoa Santa.","Não",null,"2024-12-16","2025-12-15",null,null,"12","2025",null,594899.99,"I.GIF.AQE",null,"Júlio Campos Franklin","Neylor Assunção Mesquit","Maycon do Vale Silva","Júlia Carolina Soares","SEI"]
[" 9430.225/24",9430225,"2320.01.0018020/2023-12","Becton Dickinson Indústrias Cirúrgicas Ltda","Aquisição de Solução salina, kit contagem de células CD 34+, kit para citômetro de fluxo e kit calibração","Não",null,"2024-06-26","2034-06-25","2025-06-26","2026-06-25","06","2026",null,160582.76,"CETEBIO",null,"Maria Lúcia Soares de Moura","Thiago Jocides Arruda Batista","Maycon do Vale Silva","\tLizziane d'Ávila Pereira","SEI"]
["9437.209/24",9437209,"2320.01.0012355/2024-92","Beta Engenharia e Comércio Ltda - ME.","Aquisição de Equipamento para sala de videoconferência - identificação: solução de videoconferência para desktop, autonomia até 20 pessoas.","Não",null,"2024-09-05","2025-09-04","-",null,"09","2025",null,117600,"I.GTC.ITS",null,"Daniel Eustáquio Coutinho","Izadalvo Ricardo de Oliveira","Maycon do Vale Silva","Lizziane dÁvila Pereira","SEI"]
["9437.060/24",9437060,"2320.01.0011956/2024-98","Biocell Biotecnologia Ltda","Aquisição de Corante - Identificação: Flourescente não Carcinoenico e de Enzima - Identificação TAQ DNA Polimerase Hot Start.","Não",null,"2024-08-29","2025-08-28","-",null,"08","2025","-",4379.78,"T.GLA.CIH",null,"Luciana Cayres Schmidt","Michelle Theodoro Alves","Lizziane d'Ávila Pereira","Maycon do Vale Silva","SEI"]
["9442.364/24",9442364,"2320.01.0016179/2024-52","Biocell Biotecnologia Ltda","Aquisição ce corantes (Lote 04) e soro fetal bovino (Lote 11).","Não",null,"2024-12-02","2025-12-01","-",null,"12","2025","-",4600,"T.GLA.CSO",null,"Felipe Carlos Brito de Souza","Nathália Gomide Cruz","Lizziane d'Ávila Pereira","Marcela Soares Ferreira","SEI"]
["9470.571/25",9470571,"2320.01.0008902/2025-06","Biocontrol Ltda.","Contratação de serviços de monitoramento da qualidade do ar nas unidades da Fundação Hemominas em Uberada e Governador Valadares (lotes 02 e 05).","Não",null,"2025-06-18","2035-06-17",null,null,"06","2026",null,23310,"DGI.ENC",null,"Felipe Garabini Antunes","João Silvestre Guimarães Gonçalves","Anna Luíza Leandro Fernandes Moreira","Marcela Soares Ferreira","SEI"]
["9412.683/24",9412683,"2320.01.0011232/2023-55","Biologística Soluções em Logística e Serviços Ltda","Prestação de serviço de transporte de material biológico de origem humana ou animal, por via aérea e rodoviária.","Não",null,"2024-03-01","2029-02-28","-",null,"02","2025",{"$f":"O52/12","v":366028.48},4392341.76,"G.GLQ",null,"Gisele de Fátima Melo","Rosangela Vital de Almeida","Marcela Soares Ferreira"," Júlia Carolina Soares","SEI"]
["9319.188/22",9319188,"2320.01.0000684/2022-62","Biomédica Equipamentos e Suprimentos Hospitalares Ltda","Aquisição de reagentes para agregação plaquetária (ADP, lote 03, item 01).","Não",null,"2022-01-25","2027-01-24","2025-01-25","2026-01-24","01","2026","-",9280,"HBH.T.LHEM",null,"Beatriz Nogueira de Carvalho APOSENTOU","João Henrique Fonseca de Moura","Marisa de Lima Marques Nogueira","Renata Azzi Júdice","SEI"]
["9397.823/23",9397823,"2320.01.0003862/2023-98","Biomédica Equipamentos e Suprimentos Hospitalares Ltda","Prestação de serviço de Manutenção Preventiva, Corretiva e Calibração do Agregômetro Plaquetas Chronolog 700.","Não",null,"2023-11-01","2028-10-31","2024-11-01","2025-10-31","10","2025",{"$f":"O54/12","v":6343.75},76125,"DGI.ENC",null,"Paulo José Cifuentes Gonçalves","Alexandre Vitor da Silva","Emilene Gomes e Silva","Marisa de Lima Marques Nogueira","SEI"]
["9389.604/23",9389604,"2320.01.0016138/2021-04","Biometrix Diagnóstica Ltda.","Aquisição de Sistema analítico completo para realização de tipificação de HLA por metodologia de sequenciamento de nova geração – NGS.","Sim",null,"2023-07-04","2028-07-03","2024-07-04","2025-07-03","07","2025","-",7154450,"T.GLA.HLA",null,"Felipe Carlos Brito de Souza","Luciana Lara Viegas da Aparecida","Marisa de Lima Marques Nogueira","Marcela Soares Ferreira","SEI"]
["9392.802/23",9392802,"2320.01.0012180/2023-67","Biometrix Diagnóstica Ltda.","Aquisição de Insumos e reagentes necessário para tipificação HLA (média/alta resolução) de amostras de Doadores e Receptores de Medula Óssea (lotes 03 e 04).","Não",null,"2023-08-25","2028-08-24","2024-08-25","2025-08-24","08","2025","-",97626.6,"T.GLA.HLA",null,"Felipe Carlos Brito de Souza","Luciana Lara Viegas da Aparecida","Marcela Soares Ferreira","Marisa de Lima Marques Nogueira","SEI"]
["9442.479/24",9442479,"2320.01.0016181/2024-95","Biometrix Diagnóstica Ltda.","Aquisição de kit para genotipagem de genes (lote 12).","Não",null,"2024-12-09","2025-12-08","-",null,"12","2025","-",86443.199999999997,"T.GLA.HLA",null,"Felipe Carlos Brito de Souza","Nathália Gomide Cruz","Lizziane d'Ávila Pereira","Marcela Soares Ferreira","SEI"]
["9445.649/24",9445649,"2320.01.0010119/2024-33","Biosave - Diagnóstica Ltda - EPP.","Aquisição de antígeno de VDRL","Não",null,"2024-12-16","2034-12-15",null,null,"12","2025",null,1575,"T.GLA.CSO",null,"Sônia Mara Nunes da Silva","Leonardo Antonio Renna Batalha","Lizziane d'Ávila Pereira","Marcela Soares Ferreira","SEI"]
["9459.553/25",9459553,"2320.01.0005167/2025-68","Biosave - Diagnóstica Ltda - EPP.","Aquisição de tubos e ponteiras (Lote 03).","Não",null,"2025-04-04","2035-04-03",null,null,"04","2026",null,38745,"T.GLA",null,"João Paulo dos Santos Barbosa",null,"Marcela Soares Ferreira",null,"SEI"]
["9447.087/24",9447087,"2320.01.0004984/2024-65","BMA Comércio de Produtos Aromáticos e Locação de Equipamentos Eletroeletrônicos Ltda","Prestação de Serviço de purificação, desinfecção e aromatização de banheiros (com equipamentos em comodato), para o Hemocentro de Belo Horizonte da Fundação Hemominas.","Sim",null,"2024-12-27","26/12/2034   (COTEP) ",null,null,"12","2025",null,29640,"HBH.A.SGS",null,"Hamilton Silva",null,"Kele Adriane de Rezende","Maycon do Vale Silva","SEI"]
["9388.815/23",9388815,"2320.01.0004662/2022-35","BR Life LCC representada pela empresa Biometrix Diagnóstica Ltda.","Aquisição de kits reagentes de histocompatibilidade, com cessão de equipamentos em comodato.","Sim",null,"2023-06-20","2028-06-19","2024-06-20","2025-06-19","06","2025","-",5196910.68,"T.GLA.HLA",null,"Felipe Carlos Brito de Souza","Nathália Gomide Cruz","Marisa de Lima Marques Nogueira","Marcela Soares Ferreira","SEI"]
["9434.090/24",9434090,"2320.01.0002049/2024-61","BRASOFTWARE INFORMÁTICA LTDA."," Subscrições de licenças do software Adobe Creative Cloud for Teams Complete","Não",null,"2024-08-05","2034-08-04","-",null,"08","2025",{"$f":"O62/12","v":3992.9416666666671},47915.3,"I.GTC.ADS",null," Renato Vianna do Valle Júnior","Luciene Aparecida Nogueira Queiroz","Maycon do Vale Silva","Marcela Soares Ferreira","SEI"]
["9332.206/22",9332206,"2320.01.0011584/2021-63","Bravo Ar Service Comércio Máquinas e Equipamentos Ltda","Prestação de serviço de manutenção preventiva e corretiva em aparelho de ar condicionado do Hemocentro Regional de Uberaba, da Fundação Hemominas.","Não",null,"2022-04-29","2027-04-28","2025-04-29","2026-04-28","04","2026",{"$f":"O63/12","v":8694.3350000000009},104332.02,"GAD.URA",null,"Leila Pereira","Lúcia de Fátima Oliveira","Marisa de Lima Marques Nogueira",null,"SEI"]
["9445.828/24",9445828,"2320.01.0017329/2024-42","Brumadinho Papel e Comércio Ltda - ME","Aquisição de materiais de limpeza para atender a demanda das Unidades da Fundação Hemominas (Lotes 11 e 14).","Não",null,"2024-12-16","2025-12-15",null,null,"12","2025","-",17699.599999999999,"DGI.NZL",null,"Marcelo de Aguiar Gomes","Nilza de Melo Pereira","Marcela Soares Ferreira","Lizziane d'Ávila Pereira","SEI"]
["9440.837/24",9440837,"2320.01.0004045/2024-04","C & D indústria e Comércio de Alimentos Ltda - EPP","Aquisição de produtos e insumos que compõem o lanche diário do Doador Voluntário de Sangue e para a Semana Nacional do Doador de Sangue, aquisição de adoçantes para servidores e doadores, contratação da prestação de fornecimento de gêneros alimentícios e coffee break para a comemoração ao Dia do Paciente, em Montes Claros.","Não",null,"2024-10-25","2034-10-24","-",null,"10","2025","-",145292.68,"MOC.GAD",null,"Daniel Nascimento Salgado","Rodney Araújo Viana","Marcela Soares Ferreira","Lizziane d'Ávila Pereira","SEI"]
["9373.618/23",9373618,"2320.01.0012369/2022-11","C M Pingo Ar Condicionado","Prestação de serviço de manutenção preventiva e corretiva em aparelhos de ar condicionado, incluindo fornecimentos de peças para o Hemonúcleo de Ituiutaba da Fundação Hemominas.","Não",null,"2023-03-03","2028-03-02","2025-03-03","2026-03-02","03","2026",{"$f":"O66/12","v":6265.7433333333329},75188.92,"GAD.ITU",null,"Márcia Regina Luís","Renata Léa Silva Souza","Marcela Soares Ferreira","Dallila Rodrigues Júlia","SEI"]
["9374.623/23",9374623,"2320.01.0012728/2022-18","C M Pingo Ar Condicionado","Prestação de serviço de manutenção preventiva e corretiva em aparelhos de ar condicionado para o Hemonúcleo de Divinópolis da Fundação Hemominas.","Não",null,"2023-03-03","2028-03-02","2025-03-03","2026-03-02","03","2026",{"$f":"O67/12","v":4346.0974999999999},52153.17,"GAD.DIV",null,"Nilba Valéria Pinheiro de Oliveira","Nayara Suélem Silva"," Maycon do Vale Silva","Marcela Soares Ferreira","SEI"]
["9309.045/21",9309045,"2320.01.0000257/2021-51","CAB Tecnologia e Sistemas Comércio Ltda.","Prestação de serviço de outsourcing de impressão.","Não",null,"2021-11-20","2026-11-19","2024-11-20","2025-11-19","11","2025",{"$f":"O68/12","v":134943.75},1619325,"I.GTC.ITS",null,"Fabrine Juliana Fabricio Costa","Ademar José Vieira","Renata Azzi Júdice","Marisa de Lima Marques Nogueira","SEI"]
["9316.151/21",9316151,"2320.01.0013685/2020-84","Caldas Extintores e Equipamentos Contra Incêndio Eireli","Prestação de serviço de manutenção dos sistemas de prevenção e combate a incêndio e pânico das Unidades da Fundação Hemominas - Uberlândia (lote 07).","Não",null,"2022-01-07","2027-01-06","2025-01-07","2026-01-06","01","2026",{"$f":"O69/12","v":815.00333333333344},9780.0400000000009,"UDI.A.COM",null,"Renata Léa Silva Souza","Márcia Regina Luis","Marisa de Lima Marques Nogueira","Renata Azzi Júdice","SEI"]
["9396.909/23",9396909,"2320.01.0005396/2023-02","CEI Comércio Exportação Importação de Material Médico Ltda","Prestação de serviço de locação de equipamentos de redução de patógenos (Lote 02)","Não",null,"2023-11-10","ANUÊNCIA SOLICITADA EM 27/03/25 09/11/20027"," 10/11/2024","09/11/20025","11","2025",{"$f":"O70/12","v":33000},396000,"T.GCQ                 DGI.ENC",null,"Dayseanne Rodrigues Tomaz","Paulo José Cifuentes Gonçalves;","Marisa de Lima Marques Nogueira","Lizziane d´Ávila Pereira","SEI"]
["9438.029/24",9438029,"2320.01.0014026/2024-80","CEI - Comércio Exportação e Importação de Materiais Médicos Ltda.","Aquisição de filtros para remoção de leucócitos em concentrado de plaquetas (Lote 03).","Não",null,"2024-10-07","2034-10-06","-",null,"10","2025","-",32480,"T.GCQ",null,"Roberto Mauro Ferreira Silva (T.GCQ)",null,"Lizziane d'Ávila Pereira","Thais Helena Parizzi Saraiva","SEI"]
["9446.062/24",9446062,"2320.01.0017801/2024-05","CEI - Comércio Exportação e Importação de Materiais Médicos Ltda.","Aquisição de equipamentos técnicos: seladora para bolsa de sangue.","Não",null,"2024-12-20","2025-12-19",null,null,"12","2025",null,138915,"DGI.ENC    DGI.ENC.CAT",null,"Asaph Calazans Mendes de Souza","Manoel Ricardo Caires Fernandes","Maycon do Vale Silva","Júlia Carolina Soares","SEI"]
["9459.868/25",9459868,"2320.01.0013884/2024-34","CEI - Comércio Exportação e Importação de Materiais Médicos Ltda.","Aquisição de dispositivo estéril para transferência e coleta de amostras de concentrados de plaquetas (CP) em sistema fechado.","Não",null,"2025-04-11","2035-04-10",null,null,"04","2026",null,675000,"T.GCQ",null,"Luciana de Souza Madeira Ferreira Boy","Ana Paula de Morais","Marcela Soares Ferreira",null,"SEI"]
["9372.092/23",9372092,"2320.01.0016836/2022-70","Celasa Análises Ltda - ME","Prestação de serviços de análise e monitoramento da qualidade da água nas edificações utilizadas pela Fundação Hemominas (Lote 01).","Não",null,"2023-03-16","2028-03-15","2025-03-16","2026-03-15","03","2026",1484.1666666666667,17810,"I.GIF.AQE",null,"Jéssica Rodrigues Barbosa","Silvana Rodrigues dos Santos Rocha","Maycon do Vale Silva","Marcela Soares Ferreira","SEI"]
["9434.240/24",9434240,"2320.01.0001605/2024-21","Celasa Análises Ltda - ME","Prestação de serviços de coleta e análise do efluente oriundo do Hemocentro Regional de Juiz de Fora.","Não",null,"2024-08-06","2034-08-05","-",null,"08","2025",633.33333333333337,7600,"GAD.JFO",null,"Victor Valente Campos","Fernando dos Santos Henriques","Maycon do Vale Silva","Lizziane d'Ávila Pereira","SEI"]
[" 9434.231/24 ",9434231,"2320.01.0007141/2024-26","CEMIG Distribuição S/A"," o estabelecimento das condições,\nprocedimentos, direitos e obrigações das PARTES que regularão a conexão das\ninstalações da unidade de consumo do ACESSANTE ao SISTEMA DE DISTRIBUIÇÃO\noperado pela CEMIG D e o uso desse SISTEMA DE DISTRIBUIÇÃO pelo ACESSANTE\nem sua unidade inscrita no CNPJ/MF nº 26.388.330/0001-90, Inscrição Estadual nº\n062779821-0031, na Alameda Ezequiel Dias nº 321, Bairro Centro, Município de\nBelo Horizonte, Minas Gerais, na tensão contratada de 220 V, em rede subterrânea","Não",null,"2024-08-06",null,null,null,"08","2025",null,1052015.3500000001,"HBH.A.MPR",null,"Douglas Augusto Rodrigues Pereira","Paula Maria Leão Mendes Roenick","Maycon do Vale Silva","Marcela Soares Ferreira","SEI"]
[" 9434.213/24 ",9434213,"2320.01.0004285/2024-23","CEMIG Distribuição S/A","o estabelecimento das condições, procedimentos,\ndireitos e obrigações das PARTES que regularão a conexão das instalações da\nunidade de consumo do ACESSANTE ao SISTEMA DE DISTRIBUIÇÃO operado pela\nCEMIG D e o uso desse SISTEMA DE DISTRIBUIÇÃO pelo ACESSANTE em sua\nunidade inscrita no CNPJ/MF nº 26.388.330/0001-90, Inscrição Estadual nº\n0627798210031, na Av Levino De Souza 1845 CO, Bairro Umuarama, Município de\nUBERLANDIA, Estado de Minas Gerais, na tensão contratada de 13,8 kV","Não",null,"2024-08-06","2034-08-05",null,null,"08","2025",null,54500,"UDI.A.COM",null,"Márcia Regina Luis","Renata Léa Silva Souza","Maycon do Vale Silva","Marcela Soares Ferreira","SEI"]
["9441.722/24",9441722,"2320.01.0009885/2024-46","CEMIG Distribuição S/A","o estabelecimento das condições, procedimentos,\ndireitos e obrigações das PARTES que regularão a conexão das instalações da unidade de consumo do ACESSANTE ao Sistema de Distribuição operado pela CEMIG D e o uso desse Sistema de Distribuição pelo ACESSANTE em sua\nunidade inscrita no CNPJ/MF nº 26.388.330/0001-90, Inscrição Estadual nº\n0627798210031, na RUA GOIABEIRAS, 779, Bairro INDUSTRIAL, situada no Município de LAGOA SANTA, Estado de Minas Gerais, na tensão contratada de 13,8 kV.","Não",null,"2024-12-04",null,"-","INDETERMINADA",null,null,39781.35,477376.27,"CETEBIO",null,"Maria Lúcia Soares de Moura",null,"Kele Adriane Rezende","Marcela Soares Ferreira","SEI"]
["9443.388/24",9443388,"2320.0009009/2024-30","CEMIG Distribuição S/A","o estabelecimento das condições, procedimentos,\ndireitos e obrigações das PARTES que regularão a conexão das instalações da unidade de consumo do ACESSANTE ao Sistema de Distribuição operado pela CEMIG D e o uso desse Sistema de Distribuição pelo ACESSANTE em sua\nunidade inscrita no CNPJ/MF nº 26.388.330/0002-70, na RUA URBINO VIANA, 640 HP, Bairro CIDADE SANTA MARIA, situada no Município de MONTES CLAROS, Estado de Minas Gerais, na tensão contratada de 13,8 kV.","NÃO",null,"2024-12-04",null,"-","INDETERMINADA",null,null,25253.21,303038.52,"MOC.A.COM",null,"Gasparina Meurelle Santos Chaves",null,"Kele Adriane Rezende","Marcela Soares Ferreira","SEI"]
["9440.024/24",9440024,"2320.01.0009521/2024-77","CEMIG Distribuição S/A","o estabelecimento das condições, procedimentos,\ndireitos e obrigações das PARTES que regularão a conexão das instalações da unidade de consumo do ACESSANTE ao Sistema de Distribuição operado pela CEMIG D e o uso desse Sistema de Distribuição pelo ACESSANTE em \nunidade inscrita no CNPJ/MF nº 26.388.330/0004-32, na AV DOS ANDRADAS , 266, Bairro CENTRO, situada no Município de JUIZ DE FORA, Estado de Minas Gerais, na tensão contratada de 22 kV.","Não",null,"2024-12-04",null,"-","INDETERMINADA",null,null,26744.27,320931.24,"JFO.A.MEQ",null,"Victor Valente Campos","Fernando dos Santos Henriques","Marcela Soares Ferreira","Júlia Carolina Soares","SEI"]
["9442.145/24",9442145,"2320.01.0008465/2024-71","CEMIG Distribuição S/A","o estabelecimento das condições, procedimentos,\ndireitos e obrigações das PARTES que regularão a conexão das instalações da unidade de consumo do ACESSANTE ao Sistema de Distribuição operado pela CEMIG D e o uso desse Sistema de Distribuição pelo ACESSANTE em sua\nunidade inscrita no CNPJ/MF nº 26.388.330/0003-51, na RUA RUI BARBOSA 149 HP, Bairro CENTRO, situada no Município de GOVERNADOR VALADARES, Estado de Minas Gerais, na tensão contratada de 13,8 kV.","Não",null,"2024-12-04",null,"-","INDETERMINADA",null,null,23404.09,280849.14,"GOV.GAD",null,"Bruno Sousa Macedo","Deivandro Lessa","Maycon do Vale Silva","Lizziane d´Ávila Pereira","SEI"]
["9440.721/24",9440721,"2320.01.0007726/2024-42","Central Eto de Esterilização Ltda.","Prestação de serviço de processamento esterilização e reesterilização de materiais médico-hospitalares do CETEBIO.","Não",null,"2024-10-24","2034-10-23","-","2025-10-23","10","2025","-",175984.71,"GAD.CETEBIO",null,"Maria Lúcia Soares de Moura","Jucélia Schittini da Silva Morais","Marcela Soares Ferreira","Lizziane d´Ávila Pereira","SEI"]
["9402.637/23",9402637,"2320.01.0011945/2023-10","Certifique Soluções Ltda.","Prestação de serviço de certificação da sala limpa (sala de procedimentos e antecâmara) ISO Classe 7 do Banco de Tecidos.","Não",null,"2023-12-14","COTEPE","2024-12-14","2025-12-13","12","2025",{"$f":"O83/12","v":583.33333333333337},7000,"GAD.CETEBIO",null,"Antônio Ferreira de Oliveira Filho","Maria Lúcia Soares de Moura","Emilene Gomes e Silva","Marcela Soares Ferreira","SEI"]
["9396.908/23",9396908,"2320.01.0005396/2023-02","CERUS Corporation e Medical Technologies Innovators, Inc representadas pela empresa CEI Comércio Exportação Importação de Material Médico Ltda.","Aquisição de kits descartáveis de reagentes para redução de patógenos (Lote 01)","Não",null,"2023-11-09","AVISO EMITIDO EM 27/03/25  08/11/2027","2024-11-09","2025-11-08","11","2025","-",9093600,"T.GCQ",null,"Flávia Naves Givisiez","Gabriela Coelho de Rezende","Marisa de Lima Marques Nogueira","Lizziane d´Ávila Pereira","SEI"]
["9470.315/25",9470315,"2320.01.0007667/2025-80","Cetus Construtora Ltda.","Serviços comuns de engenharia (manutenção predial) Lote 04.","Não","SIM         doc. nº 117237016","2025-06-11","2030-06-10",null,null,"06","2026",null,980983.65,"I.GIF.MPR",null,"Douglas Augusto Rodrigues Pereira","Neylor Assunção Mesquit","Anna Luíza Leandro Fernandes Moreira","Marcela Soares Ferreira","SEI"]
["9386.448/23",9386448,"2320.01.0003667/2023-28","Chavek Ltda - ME","Prestação de serviço de confecção de chaves não ornamentais.","Não",null,"2023-05-24","COTEP","2025-05-24","2026-05-23","05","2026",{"$f":"O86/12","v":144.66666666666666},1736,"DGI.NZL",null,"Marcelo de Aguiar Gomes","Maria Beatriz Souza Melo Sarsur","Marcela Soares Ferreira","Marisa de Lima Marques Nogueira","SEI"]
["9458.477/25",9458477,"2320.01.0004623/2025-12","Citopharma Manipulação de Medicamentos Especiais Ltda.","Aquisção de meio de cultura e glicerina para o CETEBIO.","Não",null,"2025-03-25","COTEP",null,null,"03","2026",null,26246.560000000001,"CETEBIO",null,"Maria Lúcia Soares de Moura","Jucélia Schittini da Silva Morais","Lizziane d'Ávila Pereira","Marcela Soares Ferreira","SEI"]
["9402.584/23",9402584," 2320.01.0016919/2023-57","Claro S/A"," contratação de serviço de telefonia fixa comutada - Link E1 - Regiões 01, 03, 06 e 09, local, fixo-fixo, fixo móvel, DDR, instalação ou transferência, e serviço de telefonia fixa comutada - LDN (Longa Distância Nacional, fixo-fixo, fixo móvel, lotes 01, 03, 06, 09 e 14","Não",null,"2023-12-27","2028-12-26","2024-12-27","2025-12-26","12","2025",{"$f":"O88/12","v":8883.5616666666665},106602.74,"I.GTC.ITS",null,"Daniel Eustáquio Coutinho","Fabrine Juliana Fabrício Costa","Marisa de Lima Marques Nogueira","emilene Gomes e Silva","SEI"]
[" 9261.244/20 ",9261244,"2320.01.0006165/2020-06","CMG Diagnóstica Ltda","Prestação de serviço de manutenção em analisador de células Sysmex XN 1000.","Não",null,"2020-08-29","2025-08-28","2024-08-29","2025-08-28","08","2025",{"$f":"O89/12","v":10596.473333333333},127157.68,"DGI.ENC","Antônio Ferreira de Oliveira Filho","Antônio Ferreira de Oliveira Filho",null,null,null,"SEI"]
["9293.896/21",9293896,"2320.01.0009442/2021-85","CMG Diagnóstica Ltda","Aquisição de reagentes para o contador hematológico SYSMEX XN1000.","Não",null,"2021-10-29","2026-10-28","2024-10-29","2025-10-28","10","2025","-",94496.08,"GAD.CETEBIO",null,"Maria Lúcia Soares de Moura","Thiago Jocides Arruda Batista","Renata Azzi Júdice","Marisa de Lima Marques Nogueira","SEI"]
[" 9344.153/22 ",9344153,"2320.01.0001510/2022-70","Companhia de Saneamento de Minas Gerais - COPASA MG","Prestação de serviço de Recebimento e Tratamento dos efluentes líquidos domésticos e não domésticos - Programa Precend - Copasa MG (Alameda Ezequiel Dias, 321, Bairro Santa Efigênia, Belo Horizonte/MG).","Não",null,null,null,"2022-08-23",null,"08","2027",{"$f":"O91/12","v":105.55},1266.5999999999999,"HBH.A.MPR",null,"Douglas Augusto Rodrigues Pereira","Jéssica Rodrigues Barbosa","Marisa de Lima Marques Nogueira","Adriana Aparecida Tavares Diniz","SEI"]
["9446.061/24",9446061,"2320.01.0009643/2024-81","Confeitaria Salles Ltda","Aquisição de gêneros alimentícios para o lanche do doador para o Hemonúcleo de Manhuaçu (Lotes 01 e 02).","Não",null,"2024-12-20","2034-12-19",null,null,"12","2025",null,67199.600000000006,"GAD.MÇU",null,"Maria José Moreira","Gulliver Fabrício Vieira Rocha","Marcela Soares Ferreira","Lizziane d'Ávila Pereira","SEI"]
["9346.082/22",9346082,"2320.01.0005915/2022-57","Consórcio Empreendedor Shopping Estação BH","Locação de imóvel, sala SEB4002B, do Shopping Estação BH, situado na Av. Cristiano Machado, 11.833, Vila Clóris, Belo Horizonte/MG.","Não",null,null,null,"2022-11-15",null,"11","2027",{"$f":"O93/12","v":336390.74},4036688.88,"GAD.HBH           HBH.GTE",null,"Paula Maria Leão Mendes Roenick","Laiz Helena Brasil Marzano","Marisa de Lima Marques Nogueira","Emilene Gomes e Silva","SEI"]
["9452.416/25",9452416,"2320.01.0014277/2023-96","Construir Engenharia Ltda.","Prestação de serviços de reforma do prédio da Fundação /hemominas situado na Avenida Brasil, em Belo Horizonte/MG.","Não",null,"2025-02-26","2026-02-25",null,null,"02","2026",null,1039657.95,"I.GIF.AQE",null,"Silvana Rodrigues dos Santos Rocha","Júlio Campos Franklin","Marcela Soares Ferreira","Lizziane d'Ávila Pereira","SEI"]
["9461.840/25",9461840,"2320.01.0006550/2025-72","Construtora Resende Barbosa","Prestação de serviços de reforma dos telhados do Hemonúcleo de Divinópolis e do Hemocentro de Uberaba (lote 01 e lote 03).","Não",null,"2025-05-13","2026-05-12",null,null,"05","2026",null,533530.34,"I.GIF.AQE",null,"Silvana Rodrigues dos Santos Rocha","Júlio Campos Franklin","Marcela Soares Ferreira",null,"SEI"]
["9460.420/25",9460420,"2320.01.0010012/2024-12","Contagem I Incorporação SPE Ltda.","Locação do imóvel situado à Rua Simão Antônio, n° 149 - Bairro Cincão, Contagem-MG, CEP 32371-620 - Log Contagem I. Número de registro so imóvel 113138.","Não",null,"2025-05-15",null,null,null,"03","2026",107149.21,1285790.52,"G.GLQ.PTM",null,"Vagner Luiz da Silva","Moisés Patrocínio da Silva","Marcela Soares Ferreira",null,"SEI"]
["9445.122/24",9445122,"2320.01.0012813/2022-51","Contego Consultoria Ltda","Prestação de Serviço técnico especializado, consultoria e assessoria para adequação, implantação e manutenção da conformidade da Fundação Hemominas (Hemorrede e Administração Central), frente aos requisitos da Lei Geral de Proteção de Dados - LGPD, Lei 13.079 de 14 de agosto de 2018 e alterações posteriores, a ser realizado pela contratada, consistindo na elaboração, desenvolvimento, execução, implementação e implantação do projeto/programa de adequação e conformidade à LGPD, com vistas à criação do programa de governança em privacidade e proteção de dados. ","Não",null,"2024-12-04","2029-12-03","-",null,"08","2026",null,143000,"PRE.LGPD",null,"Kátia Cardoso Coelho","Maressa Motta Teixeira","Marcela Soares Ferreira","Lizziane d'Ávila Pereira","SEI"]
["9292.254/21",9292254,"2320.01.0009164/2021-25","CONTROL LAB CONTROLE DE QUALIDADE PARA LABORATÓRIOS LTDA"," Prestação de Serviços para fornecimento de programa de controle externo da qualidade (testes de proficiência) em hemocomponentes","Não",null,"2021-10-09","2026-10-08","2024-10-09","2025-10-08","10","2025",{"$f":"O98/12","v":6334.55},76014.600000000006,"T.GCQ",null,"Roberto Mauro Ferreira Silva","Gabriela Coelho de Rezende","Renata Azzi Júdice","Marisa de Lima Marques Nogueira","SEI"]
["9391.558/23",9391558,"2320.01.0006266/2023-83","Control Lab Controle de Qualidade para Laboratórios Ltda.","Aquisição de kit para Citômetro de Fluxo.","Não",null,"2023-08-31","2028-08-30","2024-08-31","2025-08-30","08","2025","-",29617.32,"GAD.CETEBIO",null,"Maria Lúcia Soares de Moura","Thiago Jocides Arruda Batista","Marcela Soares Ferreira","Marisa de Lima Marques Nogueira","SEI"]
["9410.114/24",9410114,"2320.01.0013723/2023-19","Control Lab Controle de Qualidade para Laboratórios Ltda.","Prestação de serviços de Programa de Controle Externo de Qualidade, lotes 4, 5 e 6.","Não",null,"2024-02-16","2029-02-15","2025-02-16","2026-02-15","02","2026",{"$f":"O100/12","v":797.7600000000001},9573.1200000000008,"T.GLA              T.GLA.HLA",null,"Fernando Valadares Basques","Beatriz Nogueira de Carvalho","Emilene Gomes e Silva","Lizziane d´Ávila Pereira","SEI"]
["9450.578/25",9450578,"2320.01.0001974/2024-49","Control Lab Controle de Qualidade para Laboratórios Ltda.","Prestação de serviços de ensaio e proficiência para controle externo.","Não",null,"2025-03-25","2035-03-24",null,null,"03","2026",null,108364.2,"T.GLA",null,"Fernando Valadares Basques","Milena Batista de Oliveira","Marcela Soares Ferreira","Lizziane d´Ávila Pereira","SEI"]
["9289.870/21",9289870,"2320.01.0004323/2021-73","Controle Analítico Análises Técnicas Ltda","Prestação de serviço de análise e monitoramento da qualidade da água de uso reagente usada nos diversos procedimentos e equipamentos dos laboratórios localizados no Hemocentro de Belo Horizonte (HBH) e CETEBIO.","Não",null,"2021-08-31","2026-08-30","2024-08-31","2025-08-30","08","2025",{"$f":"O102/12","v":6459.3},77511.600000000006,"DGI.ENC",null,"Wesley Rodrigues Tomaz","Dirceu Alves Jácome Júnior","Marisa de Lima Marques Nogueira","Renata Azzi Júdice","SEI"]
["9456.598/25",9456598,"2320.01.0015062/2024-44","Cristália Produtos Químicos Farmacêuticos Ltda.","Aquisição de codeína.","Não",null,"2025-03-19","2035-03-18",null,null,"03","2026",null,13962.96,"G.GLQ.ADM.FAR. CENT",null,"Josie Fabiana Santos Simão","Jennifer dos Santos Silva","Lizziane d'Ávila Pereira","Marcela Soares Ferreira","SEI"]
["9437.197/24",9437197,"2320.01.0012344/2024-98","Crossing Comércio e Serviços de Tecnologia Ltda","Aquisição de Equipamento para sala de videoconferência - identificação: solução de videoconferência, autonomia até 20 pessoas.","Não",null,"2024-09-16","2025-09-15","-",null,"09","2025","-",33497,"I.GTC.ITS",null,"Daniel Eustáquio Coutinho","Izadalvo Ricardo de Oliveira","Maycon do Vale Silva","Lizziane d'Ávila Pereira","SEI"]
["9436.710/24",943671,"2320.01.0015829/2023-96","CS BRASIL FROTAS S.A","contratação de serviços de Locação de veículos automotores novos para transporte de pessoas e pequenas cargas, sem condutor, sem fornecimento de combustível, com quilometragem livre, com seguro total sem franquia, e com manutenção preventiva e corretiva, em atendimento às demandas dos órgãos e entidades do Poder Executivo do Estado de Minas Gerais e suas unidades, em todo território estadual, para a prestação de serviços públicos permanentes ou de longa duração.","Não",null,"2024-08-24","2029-08-23","-",null,"08","2027",{"$f":"O105/12","v":458470.4483333333},5501645.3799999999,"G.GLQ.PRT.TRANSPORTE",null,"Pablo Ruas dos Santos","Anastas Falcão Quirino Chaves","Maycon do Vale Silva","Lizziane d'Ávila Pereira","SEI"]
["9346.666/22",9346666,"2320.01.0007924/2022-37","D.I. Comércio de Peças e Serviços para Geradores Eireli - ME","Prestação de serviço de manutenção preventiva e corretiva em grupo moto gerador, com fornecimento de peças.","Não",null,"2022-11-26","2027-11-25","2024-11-26","2025-11-25","11","2025",{"$f":"O106/12","v":19657.663333333334},235891.96,"DGI.ENC",null,"Thiago Euzébio dos Santos","Pamela Lorrana Freitas Marques","Marcela Soares Ferreira","Adriana Aparecida Tavares Diniz","SEI"]
["9430.232/24",9430232,"2320.01.0010097/2023-48","D.I. COMÉRCIO DE PEÇAS E SERVIÇOS PARA GERADORES EIRELI - ME.","Prestação de Serviço de locação de equipamentos de geração e distribuição de energia.","Não",null,"2024-06-25",null,"-",null,"06","2028",{"$f":"O107/48","v":4199.99},201599.52,"DGI.ENC",null,"Adilson Meireles Pacheco","\tAlexandre Vitor da Silva","\tLizziane d'Ávila Pereira","Maycon do Vale Silva","SEI"]
["9454.453/25",9454453,"2320.01.0003856/2025-60","Danilo Aparecido Borela EPP","Aquisição de nitrogênio líquido (Lote 01).","Não",null,"2025-03-13","2035-03-12",null,null,"03","2026",null,11592,"T.GLA.CIH",null,"Luciana Cayres Schmidt","Fabrizzio de Oliveira Dias","Lizziane d'Ávila Pereira","Marcela Soares Ferreira","SEI"]
["9437.724/24",9437724,"2320.01.0005968/2024/75","Datacop Serviços de Digitalização e Gestão da Informação Ltda.","Prestação de Serviço de digitalização, indexação, visualização e gerenciamento de documentos digitais.","Não",null,"2024-09-23","2029-09-22","-",null,"09","2025",null,40449,"T.GLA.CIH",null,"Luciana Cayres Schmidt","Felipe Carlos Brito de Souza","Maycon do Vale Silva","Marcela Soares Ferreira","SEI"]
["9346.205/22",9346205,"2320.01.0006344/2022-17","Datafilme Sistemas de Imagem e Informação - Eireli","Prestação de serviço de coleta, transporte, indexação, armazenagem, conservação, movimentação e gerenciamento informatizado de caixas-arquivo, contendo documentos, e de mídias micrografias originais obedecendo às normas de segurança e preservação.","Não",null,"2022-11-08","2027-11-07","2024-11-08","2025-11-07","11","2025",{"$f":"O110/12","v":11601.89},139222.68,"G.GPO.NAC",null,"Maria Isabel Castilho Campos","Valéria Christina Pinto da Silva Penna","Maycon do Vale Silva","Marcela Soares Ferreira","SEI"]
["9442.236/24",9442236,"2320.01.0000765/2024-03","Datamed Ltda.","Prestação de serviço de manutenção em centrífugas refrigeradas.","Não",null,"21/11/2024","2034-11-20","-",null,"11","2025",null,1376190.91,"DGI.ENC",null,"Maycon do Vale Silva","Júlia Carolina Soares","Felipe Silva Teixeira","Manoel Ricardo Caires Fernandes","SEI"]
["9263.187/20",9263187,"2320.01.0016325/2020-02","Dedetizadora Ribeiro e Souza Eireli - ME","Prestação de serviços de lavagem e desinfecção de  reservatório de água Unidade de Pouso Alegre.","Não",null,"2020-12-17","COTEP","2024-12-17","2025-12-16","12","2025",{"$f":"O112/12","v":130.57666666666668},1566.92,"GAD.PAL","Denise do Socorro Guimarães","Denise do Socorro Guimarães",null,null,null,"SEI"]
["9433.901/24",9433901,"2320.01.0001989/2024-32","Delpa Engenharia e Segurança Ltda"," Prestação de Serviço de  DE ADAPTAÇÃO DE BENS IMÓVEIS do Hemocentro de Juiz de Fora, que deve ser executado conforme condições do Termo de Referência.","Não",null,"2024-07-25","2025-07-24","-",null,"07","2025",{"$f":"O113/12","v":33740.833333333336},404890,"I.GIF.AQE",null,"Júlio Campos Franklin","Neylor Assunção Mesquit","Maycon do Vale Silva","Lizziane d'Ávila Pereira","SEI"]
["9389.383/23",9389383,"2320.01.0003371/2023-66","Dhuan Comissária de Despachos Aduaneiros Ltda.","Prestação de serviço de Logística Internacional, despachos aduaneiros e desembaraços alfandegários.","Não",null,"2023-06-27","2027-06-26","2025-06-27","2026-06-26","06","2026",{"$f":"O114/12","v":10872.196666666667},130466.36,"G.GLQ",null,"Gisele de Fátima Melo","Jefferson Ferreira Sardinha Ribeiro","Marisa de Lima Marques Nogueira","Marcela Soares Ferreira","SEI"]
["9401.406/23",9401406,"2320.01.0010255/2023-50","Dhuan Comissária de Despachos Aduaneiros Ltda.","Prestação de serviços de logística, despachos aduaneiros e desembaraços alfandegários.","Não",null,"2023-12-01","2028-11-30","2024-12-01","2025-11-30","11","2025",{"$f":"O115/12","v":25013.316666666666},300159.8,"G.GLQ",null,"Gisele de Fátima Melo","Jefferson Ferreira Sardinha Ribeiro","Lizziane d'Ávila Pereira","Marcela Soares Ferreira","SEI"]
["9280.256/21",9280256,"2320.01.0014726/2019-13","Diamed Latino América S/A","Aquisição de sistema analítico para realização dos testes imunohematológicos do receptor e paciente, com equipamentos em comodato.","Sim",null,"2021-06-02","2026-06-01","2025-06-02","2026-06-01","06","2026","-",1988129.3,"T.GLA.CIH","Luciana Cayres Schmidt                         Patrícia Savini","Luciana Cayres Schmidt",null,null,null,"SEI"]
["9394.630/23",9394630,"2320.01.0013744/2023-34","Diamed Latino América S/A","Aquisição de reagentes para imunohematologia (Lotes 01, 02 e 03).","Sim",null,"2023-09-30","2028-09-29","2024-09-30","2025-09-29","09","2025","-",1041127.1,"T.GLA.CIH",null,"Luciana Cayres Schmidt","Carolina Andrade","Marisa de Lima Marques Nogueira","Marcela Soares Ferreira","SEI"]
["9447.682/2025",9447682," 2320.01.0000694/2025-74","Diamed Latino América S/A","aquisição de reagentes para testes imunohematológicos e moleculares da rotina de pacientes e doadores, com equipamento em comodato, com equipamento em comodato,","Sim",null,"2025-01-17",null,null,null,"01","2026",null,1764.72,"T.GLA.CIH",null,"Luciana Cayres Schmidt","Fabrizzio de Oliveira Dias","Lizziane d'Ávila Pereira","Marcela Soares Ferreira","SEI"]
["9454.460/25",9454460,"2320.01.0003868/2025-27","Diamed Latino América S/A","Aquisição de reagentes para testes imunohematológicos (lotes 02 e 03).","Não",null,"2025-03-13","2035-03-12",null,null,"03","2026",null,33923.160000000003,"T.GLA.CIH",null,"Luciana Cayres Schmidt","Fabrizzio de Oliveira Dias","Lizziane d'Ávila Pereira","Marcela Soares Ferreira","SEI"]
["9468.314/25",9468314,"2320.01.0006175/2025-12","Diamed Latino América S/A","Aquisição sistema analítico para realização de teste para a triagem de doadores.","Não",null,"2025-05-15","2026-05-14",null,null,"01","2026",null,601463.19999999995,"T.GLA.CSI",null,"Sabrina Vieira Espíndola","Nauhara Vieira de Castro Barrosi",null,"Marcela Soares Ferreira","SEI"]
["9468.364/25",9468364,"2320.01.0000050/2025-02","Diamed Latino América S/A","Aquisição de reagentes para realização de testes imunohematológicos (lotes 01 e 06).","Não",null,"2025-05-20","???",null,null,"05","2026",null,73190.36,"T.GLA.CIH",null,"Luciana Cayres Schmidt","Fabrizzio de Oliveira Dias","Marcela Soares Ferreira",null,"SEI"]
["9453.451/25",9453451,"2320.01.0009879/2024-14","DINÂMICA DISTRIBUIÇÃO LTDA EPP.","Aquisição de dispositivos de infusão e agulha múltipla para coleta a vácuo.","Não",null,"2025-03-20","2035-03-19",null,null,"03","2026",null,12300,"G.GLQ.ADM   LAB.LHEM",null,"Mônica Vieira Gomes",null,"Lizziane d'Ávila Pereira","Marcela Soares Ferreira","SEI"]
["9459.067/25",9459067,"2320.01.0005163/2025-79","DINÂMICA DISTRIBUIÇÃO LTDA EPP.","Aquisição de tubos e ponteiras (Lotes 02 e 04).","Não",null,"2025-04-04","2035-04-03",null,null,"04","2026",null,6183,"T.GLA",null,"João Paulo dos Santos Barbosa",null,"Marcela Soares Ferreira",null,"SEI"]
["9470.126/25",9470126,"2320.01.0001823/2025-49","Distribuidora de Águas Minerais BH Ltda.","Aquisição de água mineral em garrafão retornável, com bebedouro refrigerado em comodato.","Sim",null,"2025-06-05","2035-06-04",null,null,"06","2026",null,151905,"DGI.NZL",null,"Marcelo de Aguiar Gomes","Nilza de Melo Pereira","Anna Luíza Leandro Fernandes Moreira","Marcela Soares Ferreira","SEI"]
["9392.808/23",9392808,"2320.01.0012183/2023-83","Distribuidora Mendonça e Miranda Ltda","Aquisição de Insumos e reagentes necessário para tipificação HLA (média/alta resolução) de amostras de Doadores e Receptores de Medula Óssea (lote 01).","Não",null,"2023-08-25","2028-08-24","2024-08-25","2025-08-24","08","2025","-",16065.5,"T.GLA.HLA",null,"Felipe Carlos Brito de Souza","Luciana Lara Viegas da Aparecida","Marcela Soares Ferreira","Marisa de Lima Marques Nogueira","SEI"]
["9442.023/24",9442023,"2320.01.0015891/2024-68","Distribuidora Mendonça e Miranda Ltda.","Aquisição de tubo criogênico (lote 01).","Não",null,"2024-11-12","2025-11-11","-",null,"11","2025",null,2000,"T.GLA.CIH",null,"Luciana Cayres Schmidt","Carolina Gonçalves Andrade","Lizziane d'Ávila Pereira","Marcela Soares Ferreira","SEI"]
["9470.489/25",9470489,"2320.01.0008805/2025-06","Distribuidora Mendonça e Miranda Ltda.","Aquisição de tubos para coleta de sangue a vácuo, tubos de vidro para laboratório e tampa uso laboratório (lote 04).","NÃO",null,"2025-06-13","2035-06-12",null,null,"06","2026",null,106596,"T.GLA",null,"João Paulo dos Santos Barbosa",null,"Anna Luíza Leandro Fernandes Moreira","Marcela Soares Ferreira","SEI"]
["9445.780/24",9445780,"2320.01.0017331/2024-85","DML Distribuição Ltda.","Aquisição de materiais de limpeza para atender a demanda das Unidades da Fundação Hemominas (Lote 21).","Não",null,"2024-12-13","2025-12-12","-",null,"12","2025",null,15000,"DGI.NZL",null,"Marcelo de Aguiar Gomes","Nilza de Melo Pereira","Marcela Soares Ferreira","Lizziane d'Ávila Pereira","SEI"]
["9382.504/23",9382504,"2320.01.0008859/2022-12","DRX Serviços Técnicos em Computadores, Máquinas e Equipamentos Ltda - ME"," Prestação de serviços de manutenção preventiva semestral e corretiva ilimitada, incluindo todo e qualquer tipo de mão de obra, com fornecimento de peças, necessários ao perfeito funcionamento e conservação em 02 (dois) Citômetros de Fluxo BD modelo FacsCalibur, instalados no prédio do CETEBIO.","Não",null,"2023-04-18","2028-04-17","2025-04-18","2026-04-17","04","2026",{"$f":"O129/12","v":34853.286666666667},418239.44,"GAD.CETEBIO  DGI.ENC",null,"Antônio Ferreira de Oliveira Filho","Maria Lúcia Soares de Moura","Maycon do Vale Silva","Marcela Soares Ferreira","SEI"]
["9445.822/24",9445822,"2320.01.0017330/2024-15","Eco Plast Comércio Ltda.","Aquisição de materiais de limpeza para atender a demanda das Unidades da Fundação Hemominas (Lote 18).","Não",null,"2024-12-16","2025-12-15",null,null,"12","2025",null,80520,"DGI.NZL",null,"Marcelo de Aguiar Gomes","Nilza de Melo Pereira","Marcela Soares Ferreira","Lizziane d'Ávila Pereira","SEI"]
["9459.025/25",9459025,"2320.01.0005209/2025-98","Eletrind Eletricidade Industrial Ltda.","Instalação de sistema de proteção contra descargas atmosféricas (Lote 04).","Não",null,"2025-04-04",null,null,null,"04","2027",null,869000,"I.GIF.AQE",null,"Márcia Mourão Moreira","Guilherme Ferreira Alves Júnior","Marcela Soares Ferreira","Lizziane d'Ávila Pereira","SEI"]
["9405.875/23",9405875,"2320.01.0007535/2023-61","Elevadores Módulo -  LTDA","Prestação de Serviço de Serviços de manutenção de elevadores da Fundação Hemominas (lotes 01 e 02) ",null,null,"2023-12-22","2028-12-21","2024-12-22","2025-12-21","12","2025",null,156540,"DGI.ENC                       HBH.A.MPR",null,"Wesley Rodrigues Tomaz e Douglas Augusto Rodrigues Pereira","Alexandre Vitor da Silva ePaula Maria Leão Mendes Roenick","Emilene Gomes e Silva","Lizziane d´Ávila Pereira","SEI"]
["9274.028/21",9274028,"2320.01.0016010/2020-68","Empresa Brasileira de Correios e Telégrafos","Contratação de produtos e serviços por meio de Pacote de Serviços dos Correios.","Não",null,"2021-03-19","2026-03-18","2025-03-19",null,"03","2026",{"$f":"O133/12","v":60833.333333333336},730000,"G.GLQ.PRT. PROTOCOLO","Pablo Ruas dos Santos","Pablo Ruas dos Santos",null,null,null,"SEI"]
["9261.663/20",9261663,"2320.01.0013000/2019-55","Energisa Minas Gerais - Distribuidora de Energia S.A.","Prestação ao Hemocentro de Manhuaçu de serviço de fornecimento de energia elétrica sob a modalidade CCER (contrato de compra de energia regulada) e CUSD (contrato uso do sistema de distribuição).","Não",null,"2020-12-03","2025-12-02","2024-12-03","2025-12-02","12","2025",14022.514166666668,168270.17,"GAD.MÇU","Luiz Carlos Moreira","Maria José Moreira",null,null,null,"SEI"]
["9470.211/25",9470211,"1210.01.0008578/2025-24","Esfera Master Comercial Ltda","Compra de equipamentos técnicos (lote 04).","Não",null,"2025-06-11","2026-06-10",null,"","06","2026",null,41890,"DGI.ENC.CAT",null,"Asaph Calazans Mendes de Souza","Manoel Ricardo Caires Fernandes","Anna Luíza Leandro Fernandes Moreira","Marcela Soares Ferreira","SEI"]
["9342.132/22",9342132,"2320.01.0002490/2022-91","Esmarty Especialista em Manutenção de Elevadores Ltda.","Prestação de serviço de manutenção preventiva e corretiva em elevador e plataforma elevatória no Hemocentro Regional de Governador Valadares da Fundação Hemominas.","Não",null,"2022-07-01","2027-06-30","2025-07-01","2026-06-30","06","2026",{"$f":"O136/12","v":2708.5891666666666},32503.07,"GAD.GOV.A.COM           GOV.A.MAT",null,"Deivandro Lessa ","Bruno Sousa Macedo","Marisa de Lima Marques Nogueira",null,"SEI"]
["9440.192/24",9440192,"2320.01.0004970/2024-55","Esmarty Especialista em Manutenção de Elevadores Ltda.","Prestação de Serviço operação e manutenção corretiva e preventiva em elevador convencional, com fornecimento de peças, da Unidade CETEBIO - Hemominas.","Não",null,"2024-10-14","2034-10-13","ANUÊNCIA SOLICITADA EM 27/03/25",null,"10","2025",null,76795.69,"DGI.ENC",null,"Adilson Meireles Pacheco","Maria Lúcia Soares de Moura","Maycon do Vale Silva","Lizziane d'Ávila Pereira","SEI"]
["9449.332/25",9449332,"2320.01.0001983/2025-94","Excellence Comercial Ltda.","Compra de equipamentos de ar condicionado (Lotes 01, 02 e 03).","Não",null,"2025-02-11","2025-08-10",null,null,"08","2025",null,88279.99,"DGI.ENC",null,"Thiago Euzébio dos Santos","Manoel Ricardo Caires Fernandes","Marcela Soares Ferreira","Lizziane d'Ávila Pereira","SEI"]
["9317.724/21",9317724,"2320.01.0013283/2021-71","Expresso Minas Frios Ltda","Prestação de serviço de transporte rodoviário de carga entre as Unidades da Fundação Hemominas, incluindo frete e serviços de carga e descarga de materiais de consumo diversos, bens permanentes, equipamentos e medicamentos.","Não",null,"2021-12-24","2026-12-23","2024-12-24","2025-12-23","12","2025",95610.495833333334,1147325.95,"G.GLQ.ALX",null,"Moisés Patrocínio da Silva","Vagner Luiz da Silva","Marisa de Lima Marques Nogueira","Renata Azzi Júdice","SEI"]
["9270.944/21",9270944,"2320.01.0002187/2021-30","EXTIMINAS Extintores Minas Gerais Ltda.","Prestação de serviço de  manutenção nos sistemas de prevenção e combate a incêndio e pânico das Unidades da Fundação Hemominas (Lotes 01 a 05).","Não",null,"2021-02-19","2026-02-18","2025-02-19","2026-02-18","02","2026",4141.09,49693.07,"G.GGP.SAO  GAD.SLA  HBH.A.MPR  GAD.CETEBIO","Rodrigo Guilherme de Oliveira Rosa","Ricardo Rocha Moreira Júnior (lotes 01 e 03)                         Marco Paulo Dias Canabrava (lote 05)                         Douglas Augusto Rodrigues Pereira (lote 04)                                                   Maria Lúcia Soares de Moura (lote 02)","Paula Maria Leão Mendes Roenick (lote 04)","Luiz Henrique Alvarenga Catão",null,"SEI"]
["9317.014/21","9261679    9317014","2320.01.0013687/2020-30","Extincêndio Valadares Ltda - EPP","Prestação de serviço de manutenção nos sistemas de prevenção e combate a incêndio e pânico das Unidades da Fundação Hemominas (Lotes 11 e 12).","Não",null,"2020-10-24","2025-10-23","2024-10-24","2025-10-23","10","2025",869.23750000000007,10430.85,"GAD.MÇU      GAD. GOV.A.MAT","Rodrigo Guilherme de Oliveira Rosa","Maria José Moreira                                            Bruno Sousa Macedo",null,null,null,"SEI"]
["9447.039/24",9447039,"2320.01.0017930/2024-14","FBX Importação, Exportação e Com. Atacadista de Prod. Farmacêuticos e Hospitalares Ltda.","Aquisição de equipamentos técnicos: doppler, nas condições do Anexo I.","Não",null,"2024-12-23","2025-12-22",null,null,"12","2025'",null,537138,"DGI.ENC.CAT",null,"Asaph Calazans Mendes de Souza","Manoel Ricardo Caires Fernandes","Maycon do Vale Silva","Júlia Carolina Soares","SEI"]
["9439.795/24",9439795,"2320.01.0013243/2023-78","Felipe Alvarenga Comércio e Serviços de Engenharia Ltda.","Prestação de serviços de manutenção preventiva, corretiva, com fornecimento de peças, e instalação de equipamentos de ar condicionado da Unidade de Coleta de Poços de Caldas, do Hemonúcleo de Passos e do Hemocentro Regional de Pouso Alegre da Fundação Hemominas.","Não",null,"2024-10-01","2034-09-30","-",null,"09","2025",null,173999.92,"DGI.ENC ",null,"Thiago Euzébio dos Santos","Alexandre Vitor da Silva","Maycon do Vale Silva","Lizziane d´Ávila Pereira","SEI"]
["9468.714/25",9468714,"2320.01.0015676/2024-53","F.F. Controle e Certificação Ltda.","Prestação de serviços de certificação da sala limpa (sala de procedimentos e antecâmara) ISSO Classe 7 do Banco de Tecidos.","Não",null,"2025-06-03","2035-06-02",null,null,"06","2026",null,7449,"DGI.ENC",null,"Antônio Ferreira de Oliveira Filho","Maria Lúcia Soares de Moura","Anna Luíza Leandro Fernandes Moreira","Marcela Soares Ferreira","SEI"]
["9445.887/24",9445887,"2320.01.0017873/2023-04","Fina Estampa Carimbos Ltda - ME","Prestação de serviços de confecção de carimbos para o Hemocentro Regional de Montes Claros (Lote 01).","Não",null,"2024-12-13","12/12/2025 (COTEP)",null,null,"12","2025",null,596.9,"MOC.GAD",null,"Daniel Nascimento Salgado","Nátaly Mariana Silva","Marcela Soares Ferreira","Lizziane d´Ávila Pereira","SEI"]
["9440.832/24",9440832,"2320.01.0005452/2024-39","Fran Luy Padaria e Confeitaria Ltda.","Aquisição de gêneros alimentícios para o Lanche Complementar do Doador (Lote 1) e Fornecimento de lanches preparados para o Lanche Capacitação Externa (Lote 2).","Não",null,"2024-10-25","LOTE 01 ( 01 ano) LOTE 02 (04 meses)","-",null,"10 ","2025","-",238298,"JFO.GAD",null,"Valcilea Campos Damasceno","André Meireles Fontes","Marcela Soares Ferreira","Lizziane d´Ávila Pereira","SEI"]
["9292.013/21 9253.476 /20","9253476    9292013    ","2320.01.0015306/2019-67","Fresenius Hemocare Brasil Ltda.","Aquisição de kit para dosagem de hemoglobina e amostras controle, com comodato de equipamentos.","Sim",null,"2020-07-31","2025-07-30","2024-07-31","2025-07-30","07","2025","-",1024853,"T.GLA",null,"Felipe Carlos Brito de Souza","Tamara Dauare de Almeida","Adriana Aparecida Tavares Diniz","Marcela Soares Ferreira","SEI"]
["9291.832/21",9291832,"2320.01.0015039/2020-95","Fresenius Hemocare Brasil Ltda.","Aquisição de bolsas de sangue.","Não",null,"2021-09-22","2026-09-21","2024-09-22","2025-09-21","09","2025","-",23518380,"T.GCQ",null,"Gabriela Coelho de Rezende","Flávia Naves Givisiez","Marisa de Lima Marques Nogueira","Adriana Aparecida Tavares Diniz","SEI"]
["9291.836/21",9291836,"2320.01.0015039/2020-95","Fresenius Hemocare Brasil Ltda.","Locação de equipamentos de hemoterapia, com prestação de serviços de manutenção preventiva, corretiva e calibração.","Não",null,"2021-09-22","2025-09-21","2024-09-22","2025-09-21","09","2025",null,"3.956.323,80 ","T.GCQ\nDGI.ENC",null,"Dayseanne Rodrigues Tomaz","Pamela Lorrana Freitas Marques","Marisa de Lima Marques Nogueira","Adriana Aparecida Tavares Diniz","SEI"]
["9371.981/23",9371981,"2320.01.0000392/2023-86","Fresenius Hemocare Brasil Ltda.","Aquisição de Anti-soros - ANTI-E (maiusculo) e Anti-Soros - ANTI-CW (Lotes 03 e 05).","Não",null,"2023-01-17","2028-01-16","2025-01-17","2026-01-16","01","2026","-",39352.5,"T.GLA.CSO     T.GLA.CIH.DOA",null,"Jomara Mendes Gonçalves","Dirceu Albino Junior","Marcela Soares Ferreira","Dallila Rodrigues Julia","SEI"]
["9437.075/24",9437075,"2320.01.0011827/2024-89","FRESENIUS HEMOCARE BRASIL LTDA.","Aquisição de bolsa de transferência quádrupla pediátrica com com volume maior ou igual a 150 ml (Lote 01","Não",null,"2024-08-30",null,"-",null,"08","2027",null,523800,"T.GLA.CIH",null,"Ana Paula de Morais","Roberto Mauro Ferreira Silva","Lizziane d'Ávila Pereira","Marcela Soares Ferreira","SEI"]
["9454.469/25",9454469,"2320.01.0003869/2025-97","Fresenius Hemocare Brasil Ltda.","Aquisição de reagentes para testes imunohematológicos (Lote 04).","Não",null,"2025-03-11","2035-03-10",null,null,"03","2026",null,62400,"T.GLA.CIH",null,"Luciana Cayres Schmidt","Fabrizzio de Oliveira Dias","Lizziane d'Ávila Pereira","Marcela Soares Ferreira"]
["9470.546/25",9470546,"2320.01.0008855/2025-14","Fresenius Hemocare Brasil Ltda.","Compra de equipamentos técnicos (lote 02).","Não",null,"2025-06-14",null,null,null,"06","2026",null,131700,"DGI.ENC.CAT",null,"Asaph Calazans Mendes de Souza","Manoel Ricardo Caires Fernandes","Anna Luíza Leandro Fernandes Moreira","Marcela Soares Ferreira","SEI"]
["9379.422/23",9379422,"2320.01.0017711/2022-16","Fujicom Comércio de Materiais Hospitalares e Importação Ltda.","Aquisição de lâminas de cobre e/ou elemento selante por radiofrequência (item 01).","Não",null,"2023-03-29","2028-03-28","2025-03-29","2026-03-28","03","2026","-",2050200,"T.GCQ",null,"Roberto Mauro Ferreira Silva","Gabriela Coelho de Rezende","Marisa de Lima Marques Nogueira","Marcela Soares Ferreira","SEI"]
["9379.423/23",9379423,"2320.01.0017711/2022-16","Fujicom Comércio de Materiais Hospitalares e Importação Ltda.","Locação de equipamentos, item 02.","Não",null,"2023-03-29","2027-03-28","2025-03-29","2026-03-28","03","2026",{"$f":"O155/12","v":4080},48960,"DGI.ENC",null,"Dayseanne Rodrigues Tomaz","Pamela Lorrana Freitas Marques","Marisa de Lima Marques Nogueira","Marcela Soares Ferreira","SEI"]
["9438.028/24",9438028,"2320.01.0014025/2024-10","Fujicom Comércio de Materiais Hospitalares e Importação Ltda.","Aquisição de filtros para remoção de leucócitos em concentrado de plaquetas (Lote 02).","Não",null,"2024-10-07","2034-10-06","2024-10-07","2025-10-06","10","2025","-",182000,"T.GCQ",null,"Roberto Mauro Ferreira Silva",null,"Lizziane d'Ávila Pereira","Thais Helena Parizzi Saraiva","SEI"]
["9452.471/25",9452471,"2320.01.0010300/2024-93","Fundação Ezequiel Dias","Prestação de serviços laboratoriais de análises microbiológicas.","Não",null,"2025-03-20","2035-03-19",null,null,"03","2026",null,174927.52,"CETEBIO",null,"Maria Lúcia Soares de Moura","Jucélia Schittini da Silva Morais","izziane d'Ávila Pereira","Marcela Soares Ferreira","SEI"]
["9440.709/24",9440709,"2320.01.0006764/2024-20","Fundação Instituto de Pesquisas Econômicas Administrativas e Contábeis de Minas Gerais - IPEAD.","Prestação de Serviços de Consultoria em Área de Logística para a Fundação Hemominas.","Não",null,"2024-10-24","2025-10-23","-",null,"10","2025","-",577100,"TEC",null,"Fernando Augusto Alves de Sousa","Dirceu Alves Jácome Júnior","Lizziane d'Ávila Pereira","Marcela Soares Ferreira","SEI"]
["9441.724/24",9441724,"2320.01.0007378/2024-29","Fundação João Pinheiro","Prestação de Serviço de Contratação de curso de liderança e gestão para servidores da Fundação Hemominas, conforme Programa de Liderança e Gestão.","Não",null,"2024-12-17","2025-12-16","-",null,"12","2025","-",412500,"G.GGP.TDE",null,"Manuela Mota Hauck","Andréa Maria Almeida Medrado","Marcela Soares Ferreira","Lizziane d'Ávila Pereira","SEI"]
["9460.778/25",9460778,"2320.01.0006594/2025-48","GALFI SERVIÇOS E LOCAÇÕES LTDA","Prestação de serviços de reforma dos telhados do Hemocentro de Belo Horizonte (Lote 02).","Não",null,"2025-05-07","2026-05-06",null,null,"05","2026",null,299000,"I.GIF.AQE",null,"Silvana Rodrigues dos Santos Rocha","Júlio Campos Franklin","Marcela Soares Ferreira",null,"SEI"]
["9292.057/21",9292057,"2320.01.0005607/2021-34","GARRASEG SOLUÇÕES EM SEGURANÇA ELETRÔNICA LTDA.","Prestação de serviço de manutenção do Sistema de Vigilância Eletrônica na Unidade da Fundação Hemominas em Uberaba.","Não",null,"2021-11-13","2026-11-12","2024-11-13","2025-11-12","11","2025",{"$f":"O161/12","v":1227.5516666666667},14730.62,"GAD.URA",null,"Leila Pereira","Lúcia de Fátima Oliveira","Marisa de Lima Marques Nogueira","Renata Azzi Júdice","SEI"]
["9459.068/25",9459068,"2320.01.0005384/2025-29","Gasmontes Comércio e Transportes Ltda.","Aquisição de central de dióxido de carbono (manifold).","Não",null,"2025-04-09","08/10/2025  (COTEP)",null,null,"10","2025",null,14350,"DGI.ENC.CAT",null,"Asaph Calazans Mendes de Souza","Manoel Ricardo Caires Fernandes","Marcela Soares Ferreira",null,"SEI"]
["9437.936/24",9437936,"2320.01.0009301/2023-06","Gesmaq Comércio e Serviços Ltda","Prestação de Serviço de manutenção preventiva mensal e corretivas, incluindo todo e qualquer tipo de mão de obra, com fornecimento de peças e materiais, necessários ao perfeito funcionamento de 03 (três) empilhadeiras, incluindo os carregadores de bateria, alocados no Almoxarifado Central.","Não",null,"2024-10-01","2034-09-30","-",null,"09","2029","-",240000,"DGI.ENC",null,"Eduardo da Silva Oliveira ","Alexandre Vitor da Silva","Maycon do Vale Silva","Lizziane d'Ávila Pereira","SEI"]
["9326.779/22",9326779,"2320.01.0013145/2021-14","GHS Indústria e Serviços Ltda.","Contratação de empresa para realização de ensaios do efluente não doméstico gerado no Hemocentro de Belo Horizonte.","Não",null,"2022-03-26","2027-03-25","2025-03-26","2026-03-25","03","2026",{"$f":"O164/12","v":1733.655},20803.86,"HBH.A.MPR",null,"Douglas Augusto Rodrigues Pereira","Paula Maria Leão Mendes Roenick","Marisa de Lima Marques Nogueira","Renata Azzi Júdice","SEI"]
["9451.321/25",9451321,"2320.01.0016816/2024-22","Globalsec Tecnologia da Informação Ltda.","Prestação de Serviços de certificação digital para pessoa jurídica.","Não",null,"2025-02-18","2035-02-17",null,null,"02","2030",null,196970,"I.GTC.ITS",null,"Izadalvo Ricardo de Oliveira","Fabrine Juliana Fabrício Costa","Lizziane d'Ávila Pereira","Marcela Soares Ferreira","SEI"]
["9396.509/23",9396509,"2320.01.0000857/2023-44","Globalthings Tecnologia Ltda.","Prestação de Serviço de FORNECIMENTO DE LICENÇA, PRESTAÇÃO DE SERVIÇOS DE MIGRAÇÃO DE BANCO DE DADOS, DE MANUTENÇÃO DE SISTEMAS DE INFORMAÇÃO E DE CONSULTORIA PARA CUSTOMIZAÇÃO DE SISTEMA DE INFORMAÇÃO","Não",null,"2023-10-12","2027-10-11","-",null,"10","2027",3270.83,161610.47,"DGI.ENC",null,"Felipe Garabini Antunes","Eduardo da Silva Oliveira","Emilene Gomes e Silva","Marcela Soares Ferreira;","SEI"]
["9402.114/23",9402114,"2320.01.0016799/2023-96","Greiner Bio-One Brasil Produtos Médicos Hospitalares Ltda.","Aquisição de tubo para coleta de sangue a vácuo, Lotes 04, 05, 06 e 07.","Não",null,"2023-12-20","19/12/2028      (LOTE 04).","2024-12-20","2025-12-19","12","2025","-",13200,"T.GLA",null,"Andreia Alvares Tângari                                          Beatriz Nogueira de Carvalho","Felipe Carlos Brito de Souza","Lizziane d'Ávila Pereira","Marcela Soares Ferreira","SEI"]
["9470.488/25",9470488,"2320.01.0008804/2025-33","Greiner Bio-One Brasil Produtos Médicos Hospitalares Ltda.","Aquisição de tubos para coleta de sangue a vácuo, tubos de vidro para laboratório e tampa uso laboratório (lotes 01 e 02).).","Não",null,"2025-06-13","2035-06-12",null,null,"06","2026",null,503400,"T.GLA",null,"João Paulo dos Santos Barbosa",null,"Anna Luíza Leandro Fernandes Moreira","Marcela Soares Ferreira","SEI"]
["9371.972/23",9371972,"2320.01.0000228/2023-52","Grifols Brasil Ltda","Aquisição de Anti-Soros - Anti JKA Monoclonal IGM Fenotipagem Eritrocitaria (Lote 07 Itens 1 e 2).","Não",null,"2023-01-14","2028-01-13","2025-01-14","2026-01-13","01","2026","-","de: 151.992. para 127.293,30","T.GLA.CSO     T.GLA.CIH.DOA",null,"Jomara Mendes Gonçalves","Dirceu Albino Júnior","Marcela Soares Ferreira","Dallila Rodrigues Julia","SEI"]
["9454.471/25",9454471,"2320.01.0003873/2025-86","Grifols Brasil Ltda.","Aquisição de reagentes para testes imunohematológicos (Lote 11).","Não",null,"2025-03-11","2035-03-10",null,null,"03","2026",null,749557.44,"T.GLA.CIH",null,"Luciana Cayres Schmidt","Fabrizzio de Oliveira Dias","Lizziane d'Ávila Pereira"]
["9348.862/22",9348862,"2320.01.0006678/2022-20","GTO Grupo Técnico em Odontologia Ltda - ME","Prestação de serviço de manutenção, reparo, conservação e adaptação em equipamentos e instrumentos odontológicos do Hemocentro de Belo Horizonte da Fundação Hemominas.","Não",null,"2022-11-08","2027-11-07","2024-11-08","2025-11-07","11","2025",{"$f":"O171/12","v":1483.2833333333335},17799.400000000001,"DGI.ENC",null,"Paulo José Cifuentes Gonçalves","Alexandre Vitor da Silva"," Maycon do Vale Silva","Marcela Soares Ferreira","SEI"]
["9457.502/25",9457502,"2320.01.0011004/2024-97","IBUR Negócios e Serviços Ltda.","Prestação de Serviços de Manutenção Preventiva semestral, Qualificação do Equipamento - Mapeamento de Dose anual do Irradiador IBL 437C e Calibração/Irradiação anual do Dosímetro Thero Fisher Scientific - RadEye.","Não",null,"2025-03-25","2035-03-24",null,null,"03","26",null,60000,"DGI.ENC",null,"Eduardo da Silva Oliveira","Felipe Garabini Antunes","Lizziane d'Ávila Pereira","Marcela Soares Ferreira","SEI"]
["9445.560/24",9445560,"2320.01.0004803/2024-05","Indrel Indústria de Refrigeração Londrinense Ltda.","Prestação de Serviço de manutenção corretiva, preventiva, transporte, qualificação inicial, incluindo todo e qualquer tipo de mão de obra, com fornecimento de peças necessárias para o perfeito funcionamento e conservação dos equipamentos de refrigeração da marca INDREL.","Não",null,"2024-12-04","2034-12-03","-",null,"12","2025",null,969010,"DGI.ENC",null,"Felipe Silva Teixeira","Manoel Ricardo Caires Fernandes","Marcela Soares Ferreira","Lizziane d'Ávila Pereira","SEI"]
["9446.079/24",9446079,"2320.01.0017851/2024-13","Indrel Indústria de Refrigeração Londrinense Ltda.","Aquisição de equipamentos técnicos: freezer para uso de laboratório.","Não",null,"2024-12-20","2025-12-19",null,null,"12","2025",null,400000,"DGI.ENC     DGI.ENC.CAT",null,"Asaph Calazans Mendes de Souza","Manoel Ricardo Caires Fernandes","Maycon do Vale Silva","Júlia Carolina Soares","SEI"]
["9404.130/23",9404130,"2320.01.0017149/2023-55","Infocore Soluções Tecnológicas Ltda.","Prestação de serviço de Manutenção preventiva anual e corretiva das subestações de energia elétrica - Cetebio da Fundação Hemominas, LOTE 01.","Não",null,"2023-12-14","2028-12-13","2024-12-14","2025-12-13","12","2025",4983.1891666666661,59798.27,"I.GIF.MPR",null,"Forlan Bragança Lemos","Leila Guedes Alvim","Emilene Gomes e Silva","Marisa de Lima Marques Nogueira","SEI"]
["9383.296/23",9383296,"2320.01.0000472/2022-63","Infordinâmica Tecnologia Ltda.","Prestação de serviço de suporte técnico a ambiente operacional de servidores e ambiente de banco de dados - atendimento 24x7.","Não",null,"2023-04-28","2026-04-27","-",null,"04","2026",159424.95583333334,1913099.47,"I.GTC.ITS",null,"Fabrine Juliana Fabricio Costa","Daniel Eustáquio Coutinho","Marisa de Lima Marques Nogueira","Marcela Soares Ferreira","SEI"]
["9345.457/22",9345457,"2320.01.0006706/2022-40","Infra do Brasil Comércio e Serviços Eireli","Prestação de serviço de suporte técnico ao ambiente virtual de aprendizado.","Não",null,"2022-09-13","2027-09-12","2024-09-13","2025-09-12","09","2025",2294.3200000000002,27531.84,"I.GTC.ADS",null,"Adriana Lúcia dos Santos","Fabrine Juliana Fabrício Costa","Marcela Soares Ferreira","Adriana Aparecida Tavares Diniz","SEI"]
["9437.185/24",9437185,"2320.01.0003062/2024-64","Instituto Nacional de Seleções e Concursos - SELECON","Prestação de serviços de planejamento, organização, formulação de questões operacionalização, logística e execução de concurso público para provimento aos cacrgos das carreiras de Analista de Hematologia e Hemoterapia - ANHH, Assistente Técnico de Hematologia e Hemoterapia - /ATHH e Médico da Área de Hematologia e Hemoterapia - MEDHH, instituídos pela Lei Estadual n° 15.462 de 13 de janeiro de 2005, no âmbito da Fundação Centro de Hematologia e Hemoterapia de Minas Gerais (Fundação Hemominas).","Não",null,"2024-09-04","2025-09-03",null,null,"09","2025",null,1533889.5,"G.GGP.CONCURSO",null,null,null,"Lizziane d'Ávila Pereira","Júlia Carolina Soares","SEI"]
["9456.457/25",9456457,"2320.01.0001373/2025-73","Instituto Zuriel Capacitação e  Publicações Ltda.","Prestação de serviços de publicidade dos avisos de licitação, bem como matérias de interesse da DPGF e gabinete, sem dedicação exclusiva de mão de obra.","Não",null,"2025-03-20","2035-03-20",null,null,"03","2026",null,17068.3,"G.GLQ.COM",null,"Rafael Ribeiro Lopes","Andrea Aparecida Ferreira","Marcela Soares Ferreira","Lizziane d'Ávila Pereira","SEI"]
["9417.596/24",9417596,"2320.01.0001341/2024-68","Interact Solutions Ltda","Prestação de Serviço de subscrição de licença de software de planejamento estratégico - Interact Strategic Adviser, condições estabelecidas no Termo de Referência.","Não",null,"2024-03-28","2029-03-27","2025-03-28","2026-03-27","03","2026",null,341923.6,"PRE.AAE","Diogo Wanis Lara","Diogo Wanis Lara","Fernanda Zampronio Carvalho","Maycon do Vale Silva","Lizziane d'Ávila Pereira","SEI"]
["9397.807/23",9397807,"2320.01.0012003/2021-02","Iron Mountain do Brasil LTDA","Prestação de Serviço de digitalização e microfilmaagem de documentos.","Não",null,"2023-10-31","2028-10-30","2024-10-31","2025-10-30","10","2025",null,720000,"ADC/PGF/G.GPO/NAC",null,"Valéria Christina Pinto da Silva Penna","Maria Isabel Castilho Campos","emilene.gomes@hemominas.mg.gov.br","Marisa de Lima Marques Nogueira","SEI"]
["9470.484/25",9470484,"2320.01.0008742/2025-58","Instrutherm Instrumentos de Medição Ltda.","Compra de equipamentos técnicos (lote 10).","Não",null,"2025-06-14",null,null,null,"06","2026",null,141600,"DGI.ENC.CAT",null,"Asaph Calazans Mendes de Souza","Manoel Ricardo Caires Fernandes","Anna Luíza Leandro Fernandes Moreira","Marcela Soares Ferreira","SEI"]
["9459.026/25",9459026,"2320.01.0005213/2025-87","J & N Soluções Elétricas Ltda.","Instalação de sistema de proteção contra descargas atmosféricas.","Não",null,"2025-04-04","03/04/2027 Podendo ser prorrogado se necessário",null,null,"04","2027",null,1010000,"I.GIF.AQE",null,"Márcia Mourão Moreira","Guilherme Ferreira Alves Júnior","Marcela Soares Ferreira","Lizziane d'Ávila Pereira","SEI"]
["9468.342/25",9468342,"2320.01.0016936/2024-80","J & N Soluções Elétricas Ltda.","Prestação de serviçoss de manutenção preventiva anual e corretiva nos transformadores de energia das unidades de Governador Valadares e Manhuaçu, com fornecimento de peças.","Não",null,"2025-05-23","2035-05-22",null,null,"05","2026",null,45990.559999999998,"I.GIF.MPR",null,"Forlan Bragança Lemos","Leila Guedes Alvim","Marcela Soares Ferreira",null,"SEI"]
["9470.482/25",9470482,"2320.02.0008826/2025-21","JC Goumert Multi Serviços Ltda.","Prestação de serviços de fornecimento de lanches/coffee break (Lote 01).","Não",null,"2025-06-14","2035-06-13",null,null,"06","2026",null,57256,"G.GGP.TDE",null,"Manuela Mota Hauck","Andrea Maria Almeida Medrado","Anna Luíza Leandro Fernandes Moreira","Marcela Soares Ferreira","SEI"]
["9383.322/23",9383322,"2320.01.0004741/2022-36","JMBM Engenharia Elétricas & Climatização Ltda","Prestação de serviço de manutenção preventiva e corretiva de equipamentos de ar-condicionado no Hemonúcleo de Manhuaçu.","Não",null,"2023-04-19","2028-04-18","2025-04-19","2026-04-18","04","2026",{"$f":"O186/12","v":3749.9325000000003},44999.19,"MÇU.GAD",null,"Gulliver Fabricio Vieira Rocha","Maria José Moreira","Marcela Soares Ferreira","Marcela Soares Ferreira","SEI"]
["9447.573/2025",9447573,"2320.01.0008366/2024-28","JMBM Engenharia Elétricas & Climatização Ltda","Prestação de serviços de manutenção dos equipamentos de ar condicionado do Hemonúcleo de Ponte Nova,","Não",null,"2025-01-10","2035-01-09",null,null,"01","2030",111890,"559.45,00","PNO/GAD",null,"Luciana Marinho Monteiro Cerqueira","Marcelo Fabri Leandro","Marcela Soares Ferreira","Lizziane d'Ávila Pereira"]
["9376.887/23",9376887,"2320.01.0011426/2022-58","JMBM Engenharia Elétricas & Climatização Ltda.","Prestação de serviço de manutenção preventiva e corretiva de equipamentos de ar-condicionado para o Hemonúcleo de Diamantina da Fundação Hemominas.","Não",null,"2023-03-14","2028-03-13","2025-03-14","2026-03-13","03","2026",{"$f":"O188/12","v":2490},29880,"GAD.DIA",null,"Wilker Pinheiro Cordeiro","Amanda Franciele Dias de Oliveira","Marcela Soares Ferreira","Dallila Rodrigues Julia","SEI"]
["9437.077/24",9437077,"2320.01.0011833/2024-24"," JP INDÚSTRIA FARMACÊUTICA S.A","a Aquisição de bolsade transferência com volume de 300 a 500 ml (Lote 02)","Não",null,"2024-08-29",null,"-",null,"08","2027",{"$f":"O189/12","v":33600},403200,"T.GCQ ",null,"Ana Paula de Morais","Roberto Mauro Ferreira Silva","Lizziane d'Ávila Pereira","Marcela Soares Ferreira","SEI"]
["9445.799/24",9445799,"2320.01.0016640/2024-21","Jvatec Ar Condicionado Ltda","Prestação de Serviço de instalação de equipamentos de ar condicionado para as diversas unidades da Fundação Hemominas (Lotes 07 a 11 e 13 a 23).","Não",null,"2024-12-23","2025-06-22","2025-06-23","2026-01-22","01","2026",null,80000.2,"DGI.ENC",null,"Thiago Euzébio dos Santos","Eduardo da Silva Oliveira","Maycon do Vale Silva","Júlia Carolina Soares","SEI"]
["9447;743/25",9447743,"2320.01.0007163/2024-14","Kleper Viagens, Eventos e Turismo Ltda","Prestação de serviços de infraestrutura para realização de encontros técnicos-científicos da Fundação Hemominas.","Não",null,"2025-01-27",null,null,null,"01","2026",null,822032,"G.GGP.TDE",null,"Manuela Mota Hauck","Andréa Maria Almeida Medrado","Marcela Soares Ferreira","Lizziane d'Ávila Pereira","SEI"]
["9371.975/23",9371975,"2320.01.0000372/2023-44","Kovalent do Brasil Ltda","Aquisição de Anti-soros - Tipo: ANTI -C (Lote 1 e 2).","Não",null,"2023-01-18","2028-01-17","2025-01-18","2026-01-17","01","2026","-",58245,"T.GLA.CSO     T.GLA.CIH.DOA",null,"Jomara Mendes Gonçalves","Dirceu Albino Junior","Marcela Soares Ferreira","Dallila Rodrigues Julia","SEI"]
["9389.601/23",9389601,"2320.01.0003597/2023-75","Kovalent do Brasil Ltda","Aquisição de Anti-soros para realização de testes de fenotipagem eritrocitária.","Não",null,"2023-07-13","2028-07-12","2024-07-13","2025-07-12","07","2025","-",126000,"T.GLA.CSO     T.GLA.CIH.DOA",null,"Jomara Mendes Gonçalves","Dirceu Albino Junior","Marcela Soares Ferreira","Marisa de Lima Marques Nogueira","SEI"]
["9433.643/24",9433643,"2320.01.0004082/2024-72","LAB SHOPPING DIAGNÓSTICA LTDA.","Aquisição de kits reagentes e Prestação de Serviço de manutenção corretiva, preventiva e calibração dos contadores hematológicos ABX Micros 60 da Fundação Hemominas","Não",null,"2024-07-11","2034-07-10","-",null,"07","2025",{"$f":"O194/12","v":22177.666666666668},266132,"T.GCQ               DGI.ENC",null,"Roberto Mauro Ferreira Silva        Alexandre Vitor da Silva","Gabriela Coelho de Rezende                Alexandre Vitor da Silva","Lizziane d'Ávila Pereira","Maycon do Vale Silva","SEI"]
["9453.452/25",9453452,"2320.01.0005754/2023-36","Laboratórios Ecolyzer Ltda.","Prestação de serviço especializado de exame em embalagens de materiais biológicos.","Não",null,"2025-02-28","2035-02-27",null,null,"02","2026",null,11000,"CETEBIO",null,"Jucélia Schittini da Silva Morais","Maria Lúcia Soares de Moura","Lizziane d'Ávila Pereira","Marcela Soares Ferreira","SEI"]
["9441.889/24",9441889,"2320.01.0008529/2024-89","Lanlink Soluções e Comercialização em Informática S/A.","Prestação de Serviços de softwares de licença Microsoft.","Não",null,"2024-11-09","2028-11-08","-",null,"11","2025","-",4475474.0999999996,"I.GTC.ITS",null,"Fabrine Juliana Fabricio Costa","Daniel Eustáquio Coutinho","Maycon do Vale Silva","Júlia Carolina Soares","SEI"]
["9440.896/24",9440896,"2320.01.0015031/2024-08","Líder Notebooks Comércio e Serviços Ltda.","Aquisição de computadores sob demanda (Lote 02).","Não",null,"2024-10-30","2025-10-29","-",null,"10","2025","-",1172100,"I.GTC.ITS",null,"Fabrine Juliana Fabricio Costa",null,"Kele Adriane de Rezende","Maycon do Vale Silva","SEI"]
["9437.058/24",9437058,"2320.01.0011461/2024-77","Life Tech Brasil Com. Ind. Prod. Bio. Ltda.","Aquisição de enzimas de restrição e meio RPMI com bicarbonato de sódio (Lotes 03, 04, 05, 06 e 10).","Não",null,"2024-08-29","2025-08-28","-",null,"08","2025","-",12152,"T.GLA.GHI",null,"Luciana Cayres Schmidt","Michelle Theodoro Alves","Lizziane d'Ávila Pereira","Maycon do Vale Silva","SEI"]
["9392.825/23",9392825,"2320.01.0012181/2023-40","Life Technologies Brasil Comércio e Indústria de Produtos para Biotecnologia Ltda","Aquisição de Insumos e reagentes necessário para tipificação HLA (média/alta resolução) de amostras de Doadores e Receptores de Medula Óssea (lotes 05, 06, 07 e 08).","Não",null,"2023-08-26","2028-08-25","2024-08-26","2025-08-25","08","2025","-",15743.92,"T.GLA.HLA",null,"Felipe Carlos Brito de Souza","Luciana Lara Viegas da Aparecida","Marcela Soares Ferreira","Marisa de Lima Marques Nogueira","SEI"]
["9458.826/25",8458826,"2320.01.0004678/2025-79","Life Technologies Brasil Comércio e Indústria de Produtos para Biotecnologia Ltda.","Aquisição de meio de cultura e glicerina para o CETEBIO.","Não",null,"2025-03-27"," (COTEP)",null,null,"03","2026",null,884.34,"CETEBIO / G.GTTE",null,"Maria Lúcia Soares de Moura","Jucélia Schittini da Silva Morais","Lizziane d'Ávila Pereira","Marcela Soares Ferreira","SEI"]
["9445.741/2024",9445741,"2320.01.0017327/2024-96","Limpeza & Brilho Ltda. - EPP.","Aquisição de materiais, equipamentos e acessórios de limpeza para atender a demanda das Unidades da Fundação Hemominas (Lotes 02, 10, 12, 27 e 28).","Não",null,"2024-12-13",null,null,null,"12","2025",null,44362.559999999998,"DGI.NZL",null,"Marcelo de Aguiar Gomes","Nilza de Melo Pereira","Marcela Soares Ferreira"," Lizziane d'Ávila Pereira","SEI"]
["9445.764/24",9445764,"2320.01.0009742/2024-27","Líver Administradora e Corretora de Imóveis Ltda","Locação do imóvel comercial situado à Rua Darcy Botelho de Castro, nº 240, Bairro Esplanada, Ponte Nova, MG, com área total aproximada de 64,67 m2","Não",null,"2024-12-12","2034-12-11","-",null,"12","2025",920.07,11040.84,"PNO.GAD",null,"Luciana Marinho Monteiro Cerqueira","Marcelo Fabri Leandro","Marcela Soares Ferreira","Lizziane d'Ávila Pereira","SEI"]
[" 9292.303/21",9292303,"2320.01.0012879/2020-21","LM CONTROLE DE QUALIDADE LTDA","Prestação de Serviço de controle de qualidade externo nos serviços hemoterápicos","Não",null,"2021-10-15","2026-10-14","2024-10-15","2025-10-14","10","2025",{"$f":"O203/12","v":10216.883333333333},122602.6,"T.GCQ",null,"Elisângela Eliene","Flávia Naves Givisiez","Marcela Soares Ferreira","Dallila Rodrigues Júlia","SEI"]
["9371.053/23",9371053,"2320.01.0004640/2022-47","LMC Medição e Controle Eireli - ME","Prestação  de serviços especializados de calibração de equipamentos e instrumentos de precisão. ","Não",null,"2023-01-25","2028-01-24","2025-01-25","2026-01-24","01","2026",34540.023333333338,414480.28,"DGI.ENC",null,"Alexandre Vitor da Silva","Felipe Garabini Antunes","Maycon do Vale Silva","Marcela Soares Ferreira","SEI"]
["9440.564/25",9440564,"2320.01.0008078/2024-44","LMC Medição e Controle Ltda.","Prestação de serviços de qualificação térmica e calibração de equipamentos de refrigeração.","Não",null,"2024-10-16","2034-10-15","-",null,"10","2025","-",429160,"DGI.ENC",null,"Felipe Silva Teixeira","Manoel Ricardo Caires Fernandes","Maycon do Vale Silva"," Lizziane d'Ávila Pereira","SEI"]
["9436.661/24",9436661,"2320.01.0004700/2024-70"," LOURDES CAFÉ COMÉRCIO DE ALIMENTOS LTDA","Aquisição de água mineral para o Hemonúcleo de São João Del Rei, lotes 01 e 02","Não",null,"2024-08-14","2025-08-13","-",null,"08","2025",517.21,6206.52,"SJR/GAD ",null,"Adauto Rocha dos Santos","Tânia Mara da Silveira Santos","Maycon do Vale Silva","Lizziane d'Ávila Pereira","SEI"]
["9459.903/25",9459903,"2320.01.0005918/202564","Ludwig Biotecnologia Ltda - EPP","Aquisição de reagentes para o laboratório de histocompatibilidade lotes 05 (solução tampão) e 06 (agarose).","Não",null,"2025-04-17","2026-04-16",null,null,"04","2026",null,8200,"T.GLA.HLA",null,"Milena Batista de Oliveira","Luciana Lara Viegas da Aparecida","Marcela Soares Ferreira",null,"SEI"]
["9428.207/24 ",9428207,"2320.01.0004590/2024-33","M.I MONTREAL INFORMÁTICA S.A","Prestação de Serviço de Desenvolvimento e manutenção de sistemas por alocação de perfis profissionais.","Não","SIM         doc de nº 117114556","2024-06-04","2029-06-03","2025-06-04","2026-06-03","06","2026",{"$f":"O208/12","v":137022.27833333335},1644267.34,"I.GTC.ADS",null,"Adriana Lúcia dos Santos","JUAN PABLO FIGUEIREDO SILVA","Maycon do Vale Silva","Lizziane d'Ávila Pereira","SEI"]
["9442.810/14",9442810,"2320.01.0016399/2024-29","Macopharma do Brasil Importação, Exportação e Comércio Ltda.","Aquisição de filtros para remoção de leucócitos em concentrado de plaquetas (Lote 01).","Não",null,"2024-11-28","2034-11-27","-",null,"11","2025",null,2625000,"T.GCQ",null,"Roberto Mauro Ferreira Silva","Ana Paula de Morais","Lizziane d'Ávila Pereira","Marcela Soares Ferreira","SEI"]
["9447.450/2024",9447450," 2320.01.0010194/2024-45","Manoel Eufrasio de Carvalho","locação do imóvel situado à Rua Comendador José Garcia, nº 825 - Centro, Pouso Alegre/MG,","Não",null,"2024-12-31",null,null,null,"12","2025","R$ 12.000,00","R$ 144.000,00","PAL.GAD",null,"Denise do Socorro Guimarães","Elias Carnichelli Cordeiro","Marcela Soares Ferreira","Lizziane d'Ávila Pereira","SEI"]
["9396.481/23",9396481,"2320.01.0006806/2023-53","MANTIQUEIRA ELEVADORES LTDA - EPP","Prestação de Serviço de Modernização dos elevadores do Hemocentro Regional de Juiz de Fora e manutenção preventiva e corretiva dos equipamentos.","Não",null,"2023-10-11",null,"2024-10-11","2025-10-10","10","2025",null,50040,"JFO/GAD",null,"Victor Valente Campos","Andrea Magalhães Nicolato","Emilene Gomes e Silva","Marcela Soares Ferreira","SEI"]
["9434.179/24",9434179,"2320.01.0002991/2024-41","MAPDATA TECNOLOGIA, INFORMÁTICA E COMÉRCIO LTDA","Prestação de Serviço de aquisição de SUBSCRIÇÃO DE LICENÇA DO SOFTWARE AUTODESK AUTOCAD LT","Não",null,"2024-07-31","2034-07-30","-",null,"07","2025",{"$f":"O212/12","v":3051.6666666666665},36620,"I.GTC.ADS",null,"Renato Vianna do Valle Júnior","Alexandre Vitor da Silva","Maycon do Vale Silva","Marcela Soares Ferreira","SEI"]
["9440.956/24",9440956,"2320.01.0010919/2023-67","Marcopolo S.A.","Aquisição de veículos novos (ônibus/microônibus - número lugares: mínimo 25, sendo uma para cadeira de rodas) - Lote 02 e Aquisição de veículos novos (ônibus/microônibus - número lugares: mínimo 25, com dispositivo de acessibilidade) - Lote 03.","Não",null,"2024-10-31","2025-10-30","-",null,"10","2025",null,3330000,"G.GLQ.PRT.TRANSPORTE",null,"Pablo Ruas dos Santos","Anastas Falcão Quirino Chaves","Marcela Soares Ferreira","Lizziane d'Ávila Pereira","SEI"]
["9470.481/25",9470481,"2320.01.0008824/2025-75","Marília de Dirceu Indústria e Comércio de Alimentos","Prestação de serviços de fornecimento de lanches/coffee break (Lote 02).","Não",null,"2025-06-14","2035-06-13",null,null,"06","2026",null,21989.8,"G.GGP.TDE",null,"Manuela Mota Hauck","Andrea Maria Almeida Medrado","Anna Luíza Leandro Fernandes Moreira","Marcela Soares Ferreira","SEI"]
["9445.743/24",9445743,"2320.01.0017275/2024-45","Mastermed Comercial Ltda","Aquisição de equipo (Lote 01).","Não",null,"2024-12-12","2025-12-11","-",null,"12","2025",null,51000,"G.GLQ.ADM",null,"Mônica Vieira Gomes","Nilda Maria Campos Lucena","Marcela Soares Ferreira","Lizziane d'Ávila Pereira","SEI"]
["9449.224/2025",9449224,"2320.01.0016623/2024-92","Mastermed Comercial Ltda","Aquisição de bandeja inox.","Não",null,"2025-02-10",null,null,null,"02","2026",null,2045.52,"CETEBIO",null,"Asaph Calazans Mendes de Souza","Dirceu Alves Jacome Júnior","Marcela Soares Ferreira","Lizziane d'Ávila Pereira","SEI"]
["9275.448/21",9275448,"2320.01.0013054/2020-49","Maxis Informática Ltda","Prestação de serviço de manutenção preventiva e reparos em equipamentos da Solução Integrada de Controle de Ponto e Acesso.","Não",null,"2021-04-16","2026-04-15","2025-04-16","2026-04-15","04","2026",2020.7866666666666,24249.439999999999,"G.GGP.PES    G.GGP. PES.FREQUENCIA","Tiago Paulo da Silva Jorge","Sibéria Oliveira da Cruz","andrea.nicolato@hemominas.mg.gov.br",null,null,"SEI"]
["9390.348/23",9390348,"2320.01.0001291/2023-63","Maxis Informática Ltda.","Prestação de serviço de manutenção e reparo em equipamentos para controle de acesso.","Não",null,"2023-07-26","2028-07-25","2024-07-26","2025-07-25","07","2025",5804.4408333333331,69653.289999999994,"HBH.A.MPR",null,"Douglas Augusto Rodrigues Pereira","Paula Maria Leão Mendes Roenick","Marcela Soares Ferreira","Marisa de Lima Marques Nogueira","SEI"]
["9315.675/21",9315675,"2320.01.0008427/2021-39","MCPACK Equipamentos Industriais Ltda","Prestação de serviços de manutenção de sistema de abastecimento de nitrogênio líquido (N2L) marca MCPACK. (lote 1).","Não",null,"2021-12-15","2026-12-14","2024-12-15","2025-12-14","12","2025",36761.21,441134.52,"GAD.CETEBIO",null,"Maria Lúcia Soares de Moura","Antônio Ferreira de Oliveira Filho","Renata Azzi Júdice","Marisa de Lima Marques Nogueira","SEI"]
["9299.507/21",9299507,"2320.01.0014447/2021-71","MCR Sistemas e Consultoria Ltda.","Prestação de serviço de Contratação de empresa especializada para fornecimento de licença de uso dos softwares Adobe After Effects (lote 01).","Não",null,"2021-11-25","2026-11-24","2024-11-25","2025-11-24","11","2025",374.95833333333331,4499.5,"PRE.ACS",null,"Luciene Aparecida Nogueira Queiroz","Cleuza Rezende Santos de Oliveira","Marisa de Lima Marques Nogueira","Renata Azzi Júdice","SEI"]
["9445.745/24",9445745,"2320.01.0017285/2024-66","Medevices Produtos Médicos e Hospitalares Ltda.","Aquisição de lençol descartável","Não",null,"2024-12-16","2034-12-15",null,null,"12","2025",null,51060,"G.GLQ.ADM",null,"Mònica Vieira Gomes","Nilda Maria Campos Lucena","Marcela Ferreira Soares","Lizziane d'Ávila Pereira","SEI"]
["9468.664/25",9468664,"2320.01.001109/2024-75","MEDMIX BIOENGENHARIA LTDA","Prestação de serviços de manutenção preventiva/calibração anual para aparelhos fisioterápicos ( Hemocentros de Belo Horizonte e de Uberlândia).","Não",null,"2025-06-06","2035-06-05",null,null,"06","2026",null,47469.9,"DGI.ENC",null,"Eduardo da Silva Oliveira","Thiago Euzébio dos Santos","Anna Luíza Leandro Fernandes Moreira","Marcela Soares Ferreira","SEI"]
["9261.662/20",9261662,"2320.01.0004822/2019-89","Mega Construtora, Soluções Científicas e Locação Ltda","Prestação de serviço de manutenção de equipamentos e instrumentos médicos, incluindo o fornecimento de peças.","Não",null,"2020-09-30","2025-09-29","2024-09-30","2025-09-29","09","2025",3874.0183333333334,46488.22,"DGI.ENC","Paulo José Cifuentes Gonçalves","Paulo José Cifuentes Gonçalves",null,null,null,"SEI"]
["9292.814/21",9292814,"2320.01.0008066/2021-86","Mega Construtora, Soluções Científicas e Locação Ltda","Prestação de serviço de manutenção preventiva anual e corretivas necessárias, em um sistema de captura de imagens (Transiluminador), modelo LTB, marca LOCCUS.","Não",null,"2001-09-22","2026-09-21","2024-09-22","2025-09-21","09","2025",887.13166666666666,10645.58,"DGI.ENC",null,"Paulo José Cifuentes Gonçalves","Pamela Lorrana Freitas Marques","Marisa de Lima Marques Nogueira","Renata Azzi Júdice","SEI"]
["9290.324/21",9290324,"2320.01.0015746/2020-18","Mega Construtora, Soluções Científicas e Locação Ltda.","Prestação de serviço de manutenção preventiva mensal e corretiva, quando necessário, dos equipamentos e acessórios do consultório Odontológico, instalados no Hemocentro de Uberlândia.","Não",null,"2021-08-26","2026-08-25","2024-08-26","2025-08-25","08","2025",3522.2724999999996,42267.27,"GAD.UDI",null,"Márcia Regina Luis","Renata Léa Silva Souza","Renata Azzi Júdice","Marisa de Lima Marques Nogueira","SEI"]
["9401.946/23",9401946,"2320.01.0006394/2023-22","Mega Soluções Científicas e Locação Eireli","Locação de 03 (três) containers/câmaras refrigeradas com 40 pés de comprimento, cortina plástica em uma das portas, incluindo instalação, calibração anual, manutenção preventiva mensal e manutenção corretivas ilimitadas.","Não",null,"2023-12-01","2027-11-30","-",null,"11","2027",25200,302400,"DGI.ENC",null,"Wesley Rodrigues Tomaz","Alexandre Vitor da Silva","Emilene Gomes e Silva","Marcela Soares Ferreira","SEI"]
["9376.899/23",9376899,"2320.01.0000203/2023-48","Método Telecomunicações e Comércio Ltda.","Contratação de Empresa especializada na prestação de serviços sob demanda de manutenção preventiva e corretiva em Centrais Telefônicas, aparelhos analógicos e digitais contemplando trocas e fornecimento de peças, além da locação e manutenção de PABX IP Virtualizado, equipamentos de interface para sistemas de telefonia IP (Gateway), terminais telefônicos com tecnologia IP, com configuração e transferência de conhecimento, conforme condições, quantidades e exigências estabelecidas no Edital e seus anexos.","Não","SIM           SEI       62938855","2023-03-18","2027-03-17","2025-03-18","2027-03-17","03","2027",107748.22499999999,1292978.7,"I.GTC.ITS",null,"Daniel Eustáquio Coutinho","Fabrine Juliana Fabrício Costa","Marcela Soares Ferreira","Dallila Rodrigues Júlia","SEI"]
["9287.509/21",9287509,"2320.01.0010371/2021-28","MGS - Minas Gerais Administração e Serviços S/A - (Contrato corporativo)","Prestação de serviços terceirizados que ocorrerá por preenchimento de postos de serviços do seguimento de limpeza, asseio e conservação, controle de entrada e saída de bens e pessoas, apoio administrativo, operacional e técnico, visando a atender a continuidade do fluxo dos trabalhos executados no âmbito das atividades meio dos órgãos e entidades anuentes do Estado de Minas Gerais.","Não",null,null,null,"2021-08-01","2026-07-31","07","2026","-","-","G.GGP            G.GGP.MGS",null,"Jane Pinto Gomes",null,"Jane Pinto Gomes"]
["9402.639/23",9402639,"2320.01.0004844/2023-65","Microhard Informática Ltda.","Aquisição de Licenças de uso de Endpoints.","Não","SIM           SEI       103900187","2023-12-20","2027-12-19","2024-12-20","2025-12-19","12","2025","-",90603.3,"I.GTC.ITS",null,"Fabrine Juliana Fabricio Costa","Daniel Eustáquio Coutinho","Marisa de Lima Marques Nogueira","Emilene Gomes e Silva","SEI"]
["9445.740/24",9445740,"2320.01.0017286/2024-39","Millenium Comércio Serviço Ltda","Aquisição de lençol descartável","Não",null,"2024-12-12","2034-12-11","-",null,"12","2025",null,8999.9500000000007,"G.GLQ.ADM",null,"Nilda Maria Campos Lucena","Mônica Vieira Gomes","Marcela Soares Ferreira","Lizziane d'Ávila Pereira","SEI"]
["9345.744/22",9345744,"2320.01.0006349/2022-76","Minascitro Alimentos Ltda","Prestação de serviço de fornecimento de refresco adoçado pronto para beber, com equipamento em comodato.","Sim",null,"2022-09-20","2027-12-22","2024-09-20","2025-09-19","09","2025","-",37190.400000000001,"GAD.HBH.A.SGS. COP",null,"Hamilton Silva","Paula Maria Leão Mendes Roenick","Marcela Soares Ferreira","Emilene Gomes e Silva","SEI"]
["9370.905/22",9370905,"2320.01.0011554/2022-94","Minascitro Alimentos Ltda","Prestação de serviço de fornecimento de refresco adoçado, pronto para beber, com equipamento em comodato.","Sim",null,"2022-12-23","2027-12-22","2023-12-23","2025-12-22","12","2025",{"$f":"O232/12","v":2150.4},25804.799999999999,"GAD.MOC.A.COM                 MOC.A.SGS.COP",null,"Daniel do Nascimento Salgado","Rodney Araujo Viana","Marcela Soares Ferreira","Dallila Rodrigues Júlia","SEI"]
["9373.577/23",9373577,"2320.01.0003105/2023-70","Mobius Life Science Indústria e Comércio de Produtos para Laboratório Ltda.","Aquisição de kit de extração de DNA genômico (Lote 01).","Não",null,"2023-03-02","2028-03-01","2025-03-02","2026-03-01","03","2026","-",117331.52,"T.GLA.HLA",null,"Felipe Carlos Brito de Souza","Nathália Gomide Cruz","Marcela Soares Ferreira","Marisa de Lima Marques Nogueira","SEI"]
["9391.532/23",9391532,"2320.01.0012179/2023-94","Mobius Life Science Indústria e Comércio de Produtos para Laboratório Ltda.","Aquisição de Insumos e reagentes necessário para tipificação HLA (média/alta resolução) de amostras de Doadores e Receptores de Medula Óssea (lote 09).","Não",null,"2023-08-25","2028-08-24","2024-08-25","2025-08-24","08","2025","-",43200,"T.GLA.HLA",null,"Felipe Carlos Brito de Souza","Luciana Lara Viegas da Aparecida","Marcela Soares Ferreira","Marisa de Lima Marques Nogueira","SEI"]
["9392.816/23",9392816,"2320.01.0012182/2023-13","Molecular Biotecnologia Ltda","Aquisição de Insumos e reagentes necessário para tipificação HLA (média/alta resolução) de amostras de Doadores e Receptores de Medula Óssea (lote 02).","Não",null,"2023-08-25","2028-08-24","2024-08-25","2025-08-24","08","2025","-",2967.6,"T.GLA.HLA",null,"Felipe Carlos Brito de Souza","Luciana Lara Viegas da Aparecida","Marcela Soares Ferreira","Marisa de Lima Marques Nogueira","SEI"]
["9428.263/24",9428263,"2320.01.0014037/2023-77","MP BIOMEDICALS DO BRASIL LTDA","Aquisição de Kit Western Blot.","Sim",null,"2024-06-05","Art. 107                     04/06/2034","2025-06-05","2026-06-04","06","2026",null,46224,"T.GLA.CSO",null,"Sônia Mara Nunes da Silva","Leonardo Antonio Renna Batalha","Lizziane d'Ávila Pereira","Maycon do Vale Silva","SEI"]
["9262.657/20",9262657,"2320.01.0000557/2020-05","MS Serviços de Manutenção Ltda","Prestação de Serviço de manutenção em capelas de fluxo laminar","Não",null,"2020-10-07","2025-10-06","2024-10-07","2025-10-06","10","2025",{"$f":"O237/12","v":10314.661666666667},123775.94,"DGI.ENC","Pamela Lorrana Freitas Marques","Felipe Garabini Antunes","Alexandre Vitor da Silva",null,null,"SEI"]
["9262.944/20",9262944,"2320.01.0001970/2019-75","MS Serviços de Manutenção Ltda","Prestação de serviço de manutenção em sistema de ar condicionado e limpeza de dutos, incluindo fornecimento de peças.","Não",null,"2020-10-22","2025-10-21","2024-10-22","2025-10-21","10","2025",11986.480000000001,143837.76000000001,"GAD.JFO","Thiago Euzébio dos Santos","Victor Valente Campos",null,"Marcela Soares Ferreira","Adriana Aparecida Tavares Diniz","SEI"]
["9286.419/21",9286419,"2320.01.0001186/2021-91","MS Serviços de Manutenção Ltda","Prestação de serviço de manutenção preventiva e corretiva de câmaras frias e de congelamento do Hemocentro Regional de Montes Claros.","Não",null,"2021-08-14","2026-08-13","2024-08-14","2025-08-13","08","2025",7844.706666666666,94136.48,"GAD.MOC.A.MEQ      MOC.A.COM","Daniel Nascimento Salgado","Daniel Nascimento Salgado","Jordana Veríssimo Mesquita","Marisa de Lima Marques Nogueira","Renata Azzi Júdice","SEI"]
["9287.972/21",9287972,"2320.01.0010250/2021-94","MS Serviços de Manutenção Ltda","Prestação de serviço de manutenção preventiva e corretiva, e higienização do sistema de ar condicionado do CETEBIO - Lagoa Santa (Lote 02).","Não",null,"2021-08-04","2026-08-03","2024-08-04","2025-08-03","08","2025",1997.1599999999999,23965.919999999998,"GAD.CETEBIO","Maria Lúcia Soares de Moura","Maria Lúcia Soares de Moura","Antônio Ferreira de Oliveira Filho","Renata Azzi Júdice","Marisa de Lima Marques Nogueira","SEI"]
["9290.383/21",9290383,"2320.01.0003889/2021-54","MS Serviços de Manutenção Ltda","Prestação de serviço de manutenção preventiva e corretiva para as 07 (sete) Câmaras Frigoríficas do Hemocentro de Belo Horizonte/Almoxarifado Central.","Não",null,"2021-09-18","2026-09-17","2024-09-18","2025-09-17","09","2025",22026.4375,264317.25,"DGI.ENC",null,"Paulo José Cifuentes Gonçalves","Pamela Lorrana Freitas Marques","Marisa de Lima Marques Nogueira","Renata Azzi Júdice","SEI"]
["9327.397/22",9327397,"2320.01.0017114/2021-36","MS Serviços de Manutenção Ltda","Prestação de serviço de manutenção de ar portátil, ACJ e SPLIT, manutenção de Sistema de Ar Condicionado Central e reparo de Compressor Bitzer 4H25 e limpeza de dutos do Hemocentro Regional de Governador Valadares da Fundação Hemominas.","Não",null,"2022-04-14","2027-04-13","2025-04-14","2026-04-13","04","2026",15290.513333333334,183486.16,"GAD.GOV.A.COM           GOV.A.MAT",null,"Deivandro Lessa ","Bruno Sousa Macedo","Marisa de Lima Marques Nogueira",null,"SEI"]
["9400.453/23",9400453,"2320.01.0003713/2022-50","MS Serviços de Manutenção Ltda","Prestação de serviços de montagem, instalação, manutenção preventiva semestral, incluindo qualificação, e manutenção corretiva ilimitada de 02 Cabines de Fluxo Laminar Modulado TROX FMU Tamanho 23.","Não",null,"2023-11-24","2028-11-23","2024-11-24","2025-11-23","11","2025",7180.7833333333328,86169.4,"GAD.CETEBIO",null,"Antônio Ferreira de Oliveira Filho","Maria Lúcia Soares de Moura","Lizziane d'Ávila Pereira","Marisa de Lima Marques Nogueira","SEI"]
["9439.957/24",9439957,"2320.01.0007067/2024-84","MS Serviços de Manutenção Ltda","Prestação de Serviço de locação de container refrigerado.","Não",null,"2024-10-08","2034-10-07","-",null,"10","2029","-",180000,null,null,"Eduardo da Silva Oliveira (DGI.ENC).",null,"Maycon do Vale Silva","Lizziane d'Avila Pereira","SEI"]
["9459.568/25",9459568,"2320.01.0011857/2023-58","MS Serviços de Manutenção Ltda","Prestação de serviços de manutenção preventiva e corretiva de climatizador evaporativo industrial, com fornecimento de peças (Lote 01).","Não",null,"2025-04-08","2035-04-07",null,null,"04","2026",null,68000,"DGI.ENC",null,"Thiago Euzébio dos Santos","Felipe Silva Teixeira","Marcela Soares Ferreira",null,"SEI"]
["9441.723/24",9441723,"2320.01.0009861/2024-15","MSR Express Medicamentos Especiais Ltda. - EPP","Aquisição de Fenoximetilpenicilina, (Lote 01).","Não",null,"2024-11-22","2025-11-21","-",null,"11","2025","-",190800,"G.GLQ.ADM.FAR. CENT",null,"Josie Fabiana Santos Simão","Jennifer dos Santos Silva","Marcela Soares Ferreira","Lizziane d'Ávila Pereira","SEI"]
["9283.501/21",9283501,"2320.01.0006105/2021-71","MTD - Assessoria e Sistemas de Informática Ltda","Prestação de serviço de Informática com manutenção nas licenças do uso do software e de serviços para operacionalização dos sistema de custos (HEMOCUSTOS).","Não",null,"2021-07-02","2025-07-01","2024-07-02","2025-07-01","07","2025",{"$f":"O247/12","v":6535.833333333333},78430,"I.GFC.CTS",null,"Eliane Freitas de Carvalho","Carla Carvalho Martins","Marisa de Lima Marques Nogueira","Marcela Soares Ferreira","SEI"]
["9471.182/25",9471182,"2320.01.0006324/2025/63","MTD - Assessoria e Sistemas de Informática Ltda","Prestação de serviços de licença. Manutenção e suporte em software para gestão de custos.","Não",null,"2025-06-30","2035-06-29",null,null,"06","2026",null,105000,"I.GFC.CTS",null,"Eliane Freitas de Carvalho","Carla Carvalho Martins","Anna Luíza Leandro Fernandes Moreira","Marcela Soares Ferreira","SEI"]
["9430.829/24",9430829,"2320.01.0008935/2023-91","MULTI PRIME MUDANÇAS E TRANSPORTES ESPECIAIS LTDA","Prestação de Serviço de Movimentação de equipamentos e móveis da Hemominas, que deve ser executado conforme condições do Termo de Referência. (87183777)","Não",null,"2024-07-08","2025-07-07","-",null,"07","2025",null,74100,"DGI.ENG",null,"Douglas Augusto Rodrigues Pereira","\tFelipe Garabini Antunes","Lizziane d'Ávila Pereira","Maycon do Vale Silva","SEI"]
["9447.565/2025",9447565,"2320.01.0016815/2024-49","Multilaser Industrial S.A","Aquisição de notebook, ",null,"sim","2025-01-10","2025-10-29",null,null,"01","2026",null," 271.200,00","I.GTC.ITS",null,"Izadalvo Ricardo de Oliveira","Fabrine Juliane Fabrício Costa","Marcela Soares Ferreira","Lizziane d'Ávila Pereira","SEI"]
["9440.932/24",9440932,"2320.01.0015030/2024-35","Multilaser Industrial S.A","Aquisição de notebook, sob demanda (Lote 4).","Não",null,"2024-10-30","2025-10-29","-",null,"10","2025",null,67800,"I.GTC.ITS",null,"Fabrine Juliana Fabricio Costa","Izadalvo Ricardo de Oliveira","Maycon do Vale Silva","Lizziane d'Ávila Pereira","SEI"]
["9405.865/23",9405865,"2320.01.0012769/2023-72","MV Sistemas Ltda","Prestação de Serviço de suporte e manutenção do Sistema MV SOUL e PEP.","Não",null,"2023-12-21","2028-12-20","2024-12-21","2025-12-20","12","2025",{"$f":"O252/12","v":150841.82},1810101.84,"I.GTC.ADS      T.AENF",null,"Adriana Lucia dos Santos                                      Tatiana Balaguer Abramo Mendes","Renato Vianna do Valle Junior","Emilene Gomes e Silva","Marisa de Lima Marques Nogueira","SEI"]
["9445.818/24",9445818,"2320.01.0017328/2024-69","NG Comércio e Distribuição de Produtos de Limpeza Ltda.","Aquisição de materiais de limpeza para atender a demanda das Unidades da Fundação Hemominas (Lote 08).","Não",null,"2024-12-13",null,null,null,"12","2025",null,13450,"DGI.NZL",null,"Marcelo de Aguiar Gomes","Nilza de Melo Pereira","Marcela Soares Ferreira","Lizziane d'Ávila Pereira","SEI"]
["9319.185/22",9319185,"2320.01.0000683/2022-89","NL Comércio Exterior Ltda","Aquisição de reagentes para agregação plaquetária (lote 01, item 01: Colágeno e lote 02, item 01: Ristocetina).","Não",null,"2022-01-26","2027-01-25","2024-01-26","2025-01-25","01","2025","-",188450,"HBH.T.LHEM",null,"Beatriz Nogueira de Carvalho APOSENTOU","João Henrique Fonseca de Moura","Marisa de Lima Marques Nogueira","Renata Azzi Júdice","SEI"]
["9294.070/21",9294070,"2320.01.0009066/2021-52","NO FIRE EXTINTORES E SERVIÇOS LTDA.","Prestação de Serviço de manutenção e reparos em equipamentos de combate a incêndio","Não",null,"2021-10-21","COTEP","2024-10-21","2025-10-20","10","2025",{"$f":"O255/12","v":333.33166666666665},3999.98,"JFO.GAD",null,"Victor Valente Campos","Fernando dos Santos Henriques","Marisa de Lima Marques Nogueira","Renata Azzi Júdice","SEI"]
["9431.037/24",9431037,"2320.01.0016155/2023-24","NOVA ANALÍTICA IMPORTAÇÃO E EXPORTAÇÃO LTDA"," Aquisição de meios de cultura metilcelulose","Não",null,"2024-07-12","2025-07-11","-",null,"07","2025",{"$f":"O256/2","v":8200},16400,"CETEBIO",null,"Maria Lúcia Soares de Moura","Luciana de Almeida Costa","Lizziane d'Ávila Pereira","Maycon do Vale Silva","SEI"]
["9437.346/2024",9437346,"2320.01.0011991/2024-26","Novo Milênio Produtos e Serviços Ltda","Aquisição de lanche de doador Lotes, 01, 02, 04, 05, 06, 07 e 08.","Não",null,"2024-09-10","2029-09-09","-",null,"09","2025","-",1615980,"T.GSA                  T.GSA.SUP",null,"Lorena Prezotti Rodrigues","Juliana Pessoa Pinheiro de Azevedo","Marcela Soares Ferreira","Julia Carolina Soares","SEI"]
["9470.701/25",9470701,"2320.01.0009047/2025-68","Novo Milênio Produtos e Serviços Ltda","Compra de café torrado e moído e açúcar cristal.","Não",null,"2025-06-24","2026-06-23",null,null,"06","2026",null,76800,"DGI.NZL",null,"Marcelo de Aguiar Gomes","Nilza de Melo Pereira","Anna Luíza Leandro Fernandes Moreira","Marcela Soares Ferreira","SEI"]
["9276.469/21",9276469,"2320.01.0003775/2021-28","NP Tecnologia e Gestão de Dados Ltda","Prestação de serviço de acesso à ferramenta de pesquisa e comparação de preços praticados pela Administração Pública.","Não",null,"2021-04-29","2026-12-19","2025-04-29","2026-04-28","04","2026",{"$f":"O259/12","v":777.38166666666666},9328.58,"G.GLQ.COM","Rafael Ribeiro Lopes","Rafael Ribeiro Lopes",null,null,null,"SEI"]
["9459.027/25",9459027,"2320.01.0005215/2025-33","NP Construções e Serviços Elétricos Ltda-ME","Instalação de sistema de proteção contra descargas atmosféricas (Lote 01).","Não",null,"2025-04-08","2027-04-07",null,null,"04","2027",null,875000,"I.GIF.AQE",null,"Guilherme Ferreira Alves Júnior","Márcia Mourão Moreira","Marcela Soares Ferreira","Lizziane d'Ávila Pereira","SEI"]
["9402.585/23",9402585,"2320.01.0016924/2023-19","OI S.A - Em recuperação judicial","Contratação de serviço de telefonia fixa comutada, linha individual, região 12, local, fixo-fixo, fixo móvel, DDR Instalação ou transferência serviços de telefonia fixa comutada - Link E-1, Região 10 - local, fixo-fixo, fixo móvel, DDR, Instalação ou transferência, e serviço de telefonia fixa comutada, linha individual, região 13, local, fixo-fixo, fixo móvel, DDR Instalação ou transferência, lotes  10, 12 e 13.","Sim",null,"2023-12-20","2028-12-19","2024-12-20","2025-12-19","12","2025",2856.78,34281.360000000001,"I.GTC.ITS",null,"Daniel Eustáquio Coutinho","Fabrine Juliana Fabricio Costa","Marisa de Lima Marques Nogueira","Emilene Gomes e Silva","SEI"]
["9261.684/20",9261684,"2320.01.0013763/2020-15","Oi S.A. - \"Em Recuperação Judicial\" - (Incorporação da Oi Móvel S.A. - \"em Recuperação Judicial\") (Contrato corporativo) ","Contratação de serviços de telecomunicações, necessários à operação, manutenção e gerenciamento de Rede IP Multisserviços bem como serviço de Trânsito e Acesso à Internet nas Unidades da Fundação Hemominas no Estado de Minas Gerais - Lote 01","Não",null,"2020-05-28",null,"2025-05-28","2026-05-26","05","2026",43466.368333333332,521596.42,"I.GTC.ITS","Fabrine Juliana Fabrício Costa","Fabrine Juliana Fabricio Costa",null,null,null,"SEI"]
["9261.686/20",9261686,"2320.01.0013765/2020-58","Oi S.A. - \"Em Recuperação Judicial\" - (Incorporação da Oi Móvel S.A. - \"em Recuperação Judicial\") (Contrato corporativo) ","Contratação de serviços de telecomunicações necessários à implantação, operação, manutenção e gerenciamento de Rede IP Multisserviços abrangendo os Municípios do Estado de Minas Gerais, Lote 05.","Não",null,"2020-05-28",null,"2025-05-28","2605/2026","05","2026",65752.623333333337,789031.48,"I.GTC.ITS","Fabrine Juliana Fabrício Costa","Fabrine Juliana Fabricio Costa",null,null,null,"SEI"]
["9261.687/20",9261687,"2320.01.0013766/2020-31","Oi S.A. - \"Em Recuperação Judicial\" - (Incorporação da Oi Móvel S.A. - \"em Recuperação Judicial\") (Contrato corporativo) ","Contratação de serviços de telecomunicações necessários à implantação, operação, manutenção e gerenciamento de Rede IP Multisserviços abrangendo os Municípios do Estado de Minas Gerais - Lote 06.","Não",null,"2020-05-28",null,"2025-05-28","2026-05-26","05","2026",4453.12,53437.440000000002,"I.GTC.ITS","Fabrine Juliana Fabrício Costa","Fabrine Juliana Fabricio Costa",null,null,null,"SEI"]
["9261.688/20",9261688,"2320.01.0013767/2020-04","Oi S.A. - \"Em Recuperação Judicial\" - (Incorporação da Oi Móvel S.A. - \"em Recuperação Judicial\") (Contrato corporativo) ","Contratação de serviços de telecomunicações necessários à implantação, operação, manutenção e gerenciamento de Rede IP Multisserviços abrangendo os Municípios de Minas Gerais - Lote 07.","Não",null,"2020-05-28",null,"2025-05-28","2026-05-26","05","2026",51389.327500000007,616671.93000000005,"I.GTC.ITS","Fabrine Juliana Fabrício Costa","Fabrine Juliana Fabricio Costa",null,null,null,"SEI"]
["9261.689/20",9261689,"2320.01.0013768/2020-74","Oi S.A. - \"Em Recuperação Judicial\" - (Incorporação da Oi Móvel S.A. - \"em Recuperação Judicial\") (Contrato corporativo) ","Contratação de serviços de telecomunicações necessários à implantação, operação, manutenção e gerenciamento de Rede IP Multisserviços abrangendo os Municípios de Minas Gerais - Lote 08.","Não",null,"2020-05-28",null,"2025-05-28","2026-05-27","05","2026",17624.593333333334,211495.12,"I.GTC.ITS","Fabrine Juliana Fabrício Costa","Fabrine Juliana Fabricio Costa",null,null,null,"SEI"]
["9458.918/25",9458918,"2320.01.0016359/2023-45","Opus Magna Engenharia Ltda.","Prestação de Serviço de levantamento de documentação técnica para atendimento a duas demandas de regularização de imóveis referentes ao Hemocentro Regional de Pouso Alegre da Fundação Hemominas.","Não",null,"2025-03-28","2026-03-27",null,null,"03","2026",null,12250,"G.GIF.AQE",null,"Eline Magalhães Leite","Flávia Tavares dos Santos Alves","Marcela Soares Ferreira","Lizziane d´Ávila Pereira","SEI"]
["9321.315/22",9321315,"2320.01.0016805/2021-37","Oracle do Brasil Sistemas Ltda","Prestação de serviço de atualização de licenças de software e suporte, no fornecimento de correções de erro, novas versões e releases de programa, bem como serviços no esclarecimento de dúvidas ao Contratante.","Não",null,"2022-03-23","2027-03-22","2025-03-23","2026-03-22","03","2026",6427.1025,77125.23,"I.GTC.ITS",null,"Fabrine Juliana Fabricio Costa","Daniel Eustáquio Coutinho"," Lizziane d'Ávila Pereira","Marisa de Lima Marques Nogueira","SEI"]
["9293.815/21",9293815,"2320.01.0013582/2021-49","ORGANOTRAT CONTROLE DE VETORES E PRAGAS URBANAS EIRELI."," Prestação de Serviço de limpeza e tratamento de caixas de água e reservatórios (Lotes 01, 05 e 07)","Não",null,"2021-10-28","2026-10-27","2024-10-28","2025-10-27","10","2025",338.91750000000002,4067.01,"GAD.SJR.A.MPR         GAD.PNO.A.MPR    GAD.ALP",null,"Adauto Rocha dos Santos ; Marcelo Fabri Leandro; lucas.madri@hemominas.mg.gov.br","Tânia Mara da Silveira Santos;  Luciana Marinho Monteiro Cerqueira; Jaílton Fernandes Reis"," Marisa de Lima Marques Nogueira","Renata Azzi Júdice","SEI"]
["9402.698/23",9402698,"2320.01.0007185/2023-05","Otimisa Marketing e Eventos Ltda - EPP","Prestação de serviço de Locação de equipamentos de geração e distribuição de Energia.","Não",null,"2023-12-14","2027-12-13","2024-12-14","2025-12-13","12","2025",5616.68,67400.160000000003,"DGI.ENC",null,"Adilson Meireles Pacheco","Alexandre Vitor da Silva"," Emilene Gomes e Silva","Lizziane d´Ávila Pereira","SEI"]
["9468.230/25",9468230,"2320.01.0001849/2024-29","P&L Publicidade e Propaganda","Prestação de serviços de Publicidade, Propaganda e Comunicação Social.","Não",null,"2025-05-14","2035-05-13",null,null,"05","2026",null,1000000,"PRE.ACS",null,"Luciene Aparecida Nogueira Queiroz","Monique Abud Xavier de Pinho","Marcela Soares Ferreira",null,"SEI"]
["9299.511/21",9299511,"2320.01.0014551/2021-76","PA Comércio e Serviços Gerais Eireli - ME","Prestação de serviço de contratação de empresa especializada para fornecimento de licença de Powtoon Agency (Lote 02).","Não",null,"2021-11-11","2026-11-10","2024-11-11","2025-11-10","11","2025",583.33333333333337,7000,"PRE.ACS",null,"Luciene Aparecida Nogueira Queiroz","Cleuza Rezende Santos de Oliveira"," Maycon do Vale Silva","Marcela Soares Ferreira","SEI"]
["9439.869/24",9439869,"2320.01.0008349/2024-02","Panificação Betel Ltda - EPP","Aquisição de lanche de doador, lote 1.","Não",null,"2024-10-10","2029-10-09","-",null,"10","2025","-",86109.6,"GAD.GOV",null,"Bruno Sousa Macedo","Deivandro Lessa","Marcela Soares Ferreira","Julia Carolina Soares","´SEI"]
["9340.438/22",9340438,"2320.01.0013088/2021-98","Paula & Marques Ltda - ME","Prestação de serviço de implantação de software de gestão laboratorial, com suporte e manutenção corretiva e evolutiva.","Sim",null,"2022-06-16","2027-06-15","2024-06-16","2025-06-15","06","2025",20500,246000,"TEC                I.GTC.ADS",null,"Felipe Carlos Brito                                           Adriana Lúcia dos Santos","Milena Batista de Oliveira","Marisa de Lima Marques Nogueira",null,"SEI"]
["9166.108/17","9166108\n9157043","2320.01.0002177/2018-18","Perim Imóveis Ltda - ME","Locação do imóvel situado à Rua Barão do Rio Branco, nº 707, Centro, Governador Valadares/MG, para instalação de setores administrativos do Hemocentro Regional de Governador Valadares. (Registro de novo processo em substituição ao contrato nº 9157.043/17, tendo em vista a alteração da procuradoria para Perim Imóveis).              TERMO DE RESCISÃO AMIGÁVEL A PARTIR DE 28 DE FEVEREIRO DE 2025.                       ","Não",null,null,null,"2025-01-01","2025-08-31","08","2025",null,142870.39999999999,"GAD.GOV","Ivone França Souto Borborema","Bruno Sousa Macedo",null,null,null,"SEI"]
["9452.481/25",9452481,"2320.01.0011882/2024-59","Perim Imóveis Ltda - ME","Locação do imóvel situado à Rua Barão do Rio Branco, nº 707, Centro, Governador Valadares/MG, com área total aproximada de 628,26 m².","Não",null,"2025-03-01",null,null,null,"02","2026",18751.740000000002,225020.88,"GAD.GOV",null,"Bruno Sousa Macedo","Deivandro Lessa","Marcela Soares Ferreira","Lizziane d´Ávila Pereira","SEI"]
["9456.335/25",9456335,"2320.01.0002217/2025-81","Pharmacia Artesanal Ltda.","Aquisição de solução crioprotetora -Hidroxietilamido 6g 20%.","Não",null,"2025-03-19","2025-12-18",null,null,"12","2025",null,148200,"CETEBIO",null,"Maria Lúcia Soares de Moura","Luciana de Almeida Costa","Lizziane d´Ávila Pereira","Marcela Soares Ferreira","SEI"]
["9442.168/24",9442168,"2320.01.0007125/2024-70","Popular Center Ltda.","Aquisição de gêneros alimentícios para lanche de doadores (Lote 01) no Hemonúcleo de Ponte Nova da Fundação Hemominas.","Não",null,"2024-11-27",null,"-",null,"11","2025",null,73015.199999999997,"PNO.GAD",null,"Marcelo Fabri Leandro","Luciana Marinho Monteiro Cerqueira","Marcela Soares Ferreira","Lizziane d´Ávila Pereira","SEI"]
["9408.815/24",9408815,"2320.01.0018036/2023-65","Positivo Tecnologia S.A.","Contratação de serviço de suporte técnico aos usuários de microinformática, impressão, telefonia e rede local, por meio de Central de Serviços (Service Desk).","Não","SIM           SEI       82484874","2024-02-10","2029-02-09","-",null,"08","2026",{"$f":"O279/12","v":70029.031666666662},840348.38,"I.GTC.ITS",null,"Fabrine Juliana Fabricio Costa","Daniel Eustáquio Coutinho","Emilene Gomes e Silva","Marcela Soares Ferreira","SEI"]
["9456.369/25",9456369,"2320.01.0009407/2024-51","Posto Petrolucks Santa Cruz de Minas Ltda.","Prestação de serviços  de lavagem de veículos leves para o Hemocentro de São João Del-Rei.","Não",null,"2025-03-13","12/03/2035 (COTEP)",null,null,"03","2026",null,3996,"SJR.GAD     SJR.A.COM",null,"Adauto Rocha dos Santos","Tânia Mara da Silveira Santos","Marcela Soares Ferreira","Lizziane d´Ávila Pereira","SEI"]
["9342.910/22",9342910,"2320.01.0000621/2022-17","Prime Consultoria e Assessoria Empresarial Ltda.","Contratação de serviços de gestão de abastecimento em veículos e equipamentos através de sistema informatizado com cartão ou tag.","Sim",null,"2022-07-14","2027-07-13","2024-07-14","2026-07-13","07","2026",{"$f":"O281/12","v":48217.813333333332},578613.76000000001,"G.GLQ.PRT. TRANSPORTE",null,"Pablo Ruas dos Santos","Célia Maria Silva Souza","Marisa de Lima Marques Nogueira",null,"SEI"]
["9409.714/24","9409714             9401699","2320.01.0004803/2023-08","Procedata Informática Ltda.","Prestação de serviço de extensão da garantia e suporte técnico atual dos equipamentos da Fundação Hemominas.","Não",null,"2023-11-29","2028-11-28","2024-11-29","2025-11-28","11","2025",7309.73,87716.76,"I.GTC.ITS",null,"Fabrine Juliana Fabricio Costa","Daniel Eustáquio Coutinho","Marisa de Lima Marques Nogueira","Emilene Gomes e Silva","SEI"]
["9447.943/25",9447943,"2320.01.0004843/2023-92","Procedata Informática Ltda.","Aquisição de solução Firewall","Não",null,"2025-02-04","2026-02-03",null,null,"02","2026",null,1152200,"I.GTC.ITS",null,"Daniel Eustáquio Coutinho","Fabrine Juliana Fabrício Costa","Marcela Soares Ferreira","Lizziane d'Ávila Pereira","SEI"]
["9433.797/24",9433797,"2320.01.0007283/2024-72"," PRODEMGE- INF.4876.00"," Hospedagem em Infraestrutura Virtualizada: O serviço contempla a disponibilização de infraestrutura de TIC como serviço, a partir da tecnologia de virtualização de recursos computacionais, utilizando as instalações do Data Center da CONTRATADA.","Não",null,"2024-08-07","2034-08-06","-",null,"08","2025",{"$f":"O284/12","v":36552.85},438634.2,"I.GTC",null,"     Adriana Lúcia dos Santos","Fabrícia Helena de Souza Machado Marques","Maycon do Vale Silva","Lizziane d'Ávila Pereira","SEI"]
["9263.046/20 ",9263046,"2320.01.0007423/2020-87","PRODEMGE - INF. 3771.00","Prestação de Serviços de informática: Gestão de rede Wi-Fi.","Não",null,"2020-11-11","2025-11-10","2024-11-11","2025-11-10","11","2025",15861,190332,"I.GTC.ITS","Fabrine Juliana Fabrício Costa","Fabrine Juliana Fabricio Costa",null,null,null,"SEI"]
["9317.893/21",9317893,"2320.01.0015253/2021-37","PRODEMGE - INF. 4410.00","Prestação de serviços de Informática: Disponibilização da solução DAE Web (aplicativo e infraestrutura de hardware/software) para a geração de Documento de Arrecadação Estadual - DAE, via internet.","Não",null,"2022-01-15","2027-01-14","2025-01-15","2026-01-14","01","2026",572,6864,"I.GTC",null,"Mariana Cristina Santos","Fabrine Juliana Fabrício Costa","Renata Azzi Júdice","Marisa de Lima Marques Nogueira","SEI"]
["9322.305/22",9322305,"2320.01.0015254/2021-10","PRODEMGE - INF. 4426.00","Prestação de serviços de Informática: Acesso a Solução de Business Intelligence e Capacitação em Solução de Business Intelligence.","Não",null,"2022-02-16","2027-02-15","2025-02-16","2026-02-15","02","2026",12079.333333333334,144952,"I.GTC",null,"Mariana Cristina Santos","Fabrine Juliana Fabrício Costa","Renata Azzi Júdice","Marisa de Lima Marques Nogueira","SEI"]
["9317.872/21",9317872,"2320.01.0015252/2021-64","PRODEMGE - INF. 4432.00","Prestação de serviços de informática: Hospedagem de Sistemas em Ambiente Compartilhado - Baixa Plataforma, Hospedagem e Processamento de Sítios Eletrônicos em plataforma Baixa.","Não",null,"2022-01-15","2027-01-14","2024-01-15","2026-01-14","01",2026,6754.16,81049.919999999998,"I.GTC",null,"Mariana Cristina Santos","Fabrine Juliana Fabrício Costa","Marisa de Lima Marques Nogueira","Renata Azzi Júdice","SEI"]
["9323.818/22",9323818,"2320.01.0015185/2021-30","PRODEMGE - INF. 4458.00","Prestação de serviços de Informática: Acesso VPN, Integração à Rede Governo, Gerenciamento de Nível de Serviços da Rede IP Multisserviços, Acesso ao ambiente Mainframe, Conexão de alta disponibilidade à Internet.","Não",null,"2022-03-01","2027-02-28","2025-03-01","2026-02-28","02","2026",139884,1678608,"I.GTC.ITS",null,"Fabrine Juliana Fabricio Costa","Mariana Cristina Santos","Renata Azzi Júdice","Marisa de Lima Marques Nogueira","SEI"]
["9340.410/22",9340410,"2320.01.0004889/2022-17","PRODEMGE - INF. 4531.00","Prestação de serviços de informática: Hospedagem de Sistemas em Ambiente Dedicado - Baixa Plataforma.","Não",null,"2022-07-02","2027-07-01","2024-07-02","2025-07-01","07","2025",43630.049999999996,523560.6,"I.GTC",null,"Adriana Lúcia dos Santos","Fabrine Juliana Fabrício Costa","Marisa de Lima Marques Nogueira",null,"SEI"]
["9344.980/22",9344980,"2320.01.0010357/2022-15","PRODEMGE - INF. 4578","Prestação de serviços de informática: Hospedagem em Infraestrutura Virtualizada.","Não",null,"2022-08-23","2025-08-22","2024-08-23","2025-08-22","08","2025",3353.9,40246.800000000003,"I.GTC",null,"Fabrine Juliana Fabricio Costa","Adriana Lúcia dos Santos","Marcela Soares Ferreira","Adriana Aparecida Tavares Diniz","SEI"]
["9370.973/22",9370973,"2320.01.0015431/2022-78","PRODEMGE - INF. 4613.00","Prestação de serviços de informática:  Serviço de Hospedagem em Infraestrutura Virtualizada.","Não",null,"2022-12-29","2027-12-28","2023-12-29","2024-12-28","12","2024",10684.17,"128.210,04 ","I.GTC","Mariana Cristina Santos","Adriana Lúcia dos Santos","Fabrine Juliana Fabrício Costa","Marcela Soares Ferreira","Dallila Rodrigues Julia","15431/2022-18"]
["9379.416/23",9379416,"2320.01.0003448/2023-24","PRODEMGE - INF.4645.00","Prestação de serviços de informática:  Serviço de Hospedagem em Infraestrutura Virtualizada.","Não",null,"2023-04-04","2028-04-03","2025-04-04","2026-04-03","04","2026",{"$f":"O293/12","v":3691},44292,"I.GTC         I.GTC.ADS",null,"Adriana Lúcia dos Santos","Juan Pablo Figueiredo Silva","Marisa de Lima Marques Nogueira","Marcela Soares Ferreira","SEI"]
["9390.968/23",9390968,"2320.01.0007804/2023-73","PRODEMGE - INF.4724.00","Prestação de serviços de informática: Hospedagem de Servidores; Serviço de Hospedagem em Infraestrutura Virtualizada.","Não",null,"2023-08-06","2028-08-05","2024-08-06","2025-08-05","08","2025",{"$f":"O294/12","v":29056.48},348677.76,"I.GTC",null,"Fabrine Juliana Fabricio Costa","Mariana Cristina Santos","Marcela Soares Ferreira","Marisa de Lima Marques Nogueira","SEI"]
["9434.210/24",9434210,"2320.01.0009364/2024-48","PRODEMGE - INF.4903.00","Prestação de serviço executar cópias de segurança de dados dos servidores localizados nas dependências do CONTRATANTE para o Data Center Prodemge, de forma remota. A operacionalização das rotinas de backup/restore é realizada conforme os padrões estabelecidos pela Prodemge, em sua infraestrutura, e utiliza-se da conexão de rede IP/Ethernet contratada pelo CONTRATANTE.\n\n ","Não",null,"2024-08-20",null,"-",null,"08","2025",{"$f":"O295/12","v":11250},135000,"I.GTC",null,"Fabrine Juliana Fabricio Costa","Daniel Eustáquio Coutinho","Maycon do Vale Silva","Marcela Soares Ferreira","SEI"]
["9447.044/24",9447044,"2320.01.0016819/2024-38","PRODEMGE - INF. 4977.00","Solução para comunicação corporativa em meio eletrônico, contemplando os serviços de correio eletrônico, mensagem instantânea, controle de tarefas, agenda, armazenamento, colaboração e webconferência, por meio da internet e da Rede IP Multiserviços do Estado de Minas Gerais.","Não",null,"2024-12-24","2034-12-23",null,null,"12","2025",8650,103800,"I.GTC.ITS",null,"Daniel Eustáquio Coutinho","Mariana Cristina Santos","Maycon do Vale Silva","Júlia Carolina Soares","SEI"]
["9459.790/25",9459790,"2320.01.0015521/2024-67","PRODEMGE - INF. 4954.00","Alocação de espaço e infraestrutura de alta disponibilidade no Data Center da Contratada para hospedagem de equipamentos de propriedade da Contratante.","Não",null,"2025-04-29","2035-04-28",null,null,"04","2026",null,1360923.12,"I.GTC",null,"Daniel Eustáquio Coutinho","Fabrine Juliana Fabricio Costa","Marcela Soares Ferreira",null,"SEI"]
["9402.653/23",9402653,"2320.01.0009276/2023-02","Programa Nacional de Controle de Qualidade Ltda","Prestação de serviços de Programas de qualidade.","Não",null,"2023-12-08","2028-05-16","2024-12-08","2025-12-07","12","2025",{"$f":"O298/12","v":4540},54480,"T.GLA              T.GLA.HLA",null,"Fernando Valadares Basques","Milena Batista de Oliveira","Lizziane d'Ávila Pereira","Emilene Gomes e Silva ","SEI"]
["9386.161/23",9386161,"2320.01.0017081/2021-54","Promega Biotecnologia do Brasil Ltda","Aquisição de Taq Polimerase.","Não",null,"2023-05-17","2028-05-16","2024-05-17","2025-05-16","05","2025","-",6269.8,"T.GLA              T.GLA.HLA",null,"Felipe Carlos Brito de Souza","Milena Batista de Oliveira","Marcela Soares Ferreira","Marisa de Lima Marques Nogueira","SEI"]
["9447.091/24",9447091,"2320.01.0018060/2024-93","Quality Max Indústria e Comércio  de Produtos de Limpeza Ltda","Aquisição de materiais de limpeza para atender a demanda dasa unidades da Fundação Hemominas (Lote 09).","Não",null,"2024-12-23","2025-12-22",null,null,"12","2025",null,239400,"DGI.NZL",null,"Marcelo de Aguiar Gomes","Nilza de Melo Pereira","Marcela Soares Ferreira","Lizziane d'Ávila Pereira","SEI"]
["9470..127/25",9470127,"2320.01.0008377/2025-19","Quartz Indústria e Comércio de Equipamentos para Laboratório Ltda EPP.","Compra de equipamentos técnicos (lotes 16 e 17).","Não",null,"2025-06-10","2026-06-09",null,null,"06","2026",null,26000,"DGI.ENC.CAT",null,"Asaph Calazans Mendes de Souza","Manoel Ricardo Caires Fernandes","Anna Luíza Leandro Fernandes Moreira","Marcela Soares Ferreira","SEI"]
["9404.129/23",9404129,"2320.01.0017148/2023-82","Raony Amorim Coelho - ME","Prestação de Serviço de  Manutenção preventiva anual e corretiva das subestações de energia elétrica - Hemocentro Regional de Uberlândia LOTE 02.","Não",null,"2023-12-14","2028-12-13","2024-12-14","2025-12-13","12","2025",{"$f":"O302/12","v":4658.8808333333336},55906.57,"I.GIF.MPR",null,"Forlan Bragança Lemos","Felipe Silva Teixeira","Emilene Gomes e Silva","Marisa de Lima Marques Nogueira","SEI"]
["9408.816/24",9408816,"2320.01.0002976/2023-61","Renylab Química e Farmacêutica Ltda.","Aquisição de frascos de hemocultura com equipamentos em comodato.","Sim",null,"2024-02-01","2029-07-31","2025-02-01","2025-07-31","07","2025","-",522000,"T.GCQ",null,"Roberto Mauro Ferreira Silva","Gabriela Coelho de Rezende","Emilene Gomes e Silva","Marisa de Lima Marques Nogueira","SEI"]
["9437.186/24",9437186,"2320.01.0010381/2024-40","Repremig Representação e Comércio de Minas Gerais Ltda.","Aquisição de Projetores multimídia","Não",null,"2024-09-06","2029-09-05","-","2025-09-05","09","2025","-",29900,"I.GTC.ITS",null,"Fabrine Juliana Fabricio Costa","Izadalvo Ricardo de Oliveira","Maycon do Vale Silva","Lizziane d'Avila Pereira","SEI"]
["9385.808/23",9385808,"2320.01.0013019/2022-18","Salinas Empreendimentos e Construções Ltda.","Prestação de serviço de Reforma da Central Sorológica do Hemocentro de Belo Horizonte (HBH) da Fundação Hemominas.","Não",null,"2023-05-10","2028-05-09","2024-05-10","2025-05-09","05","2025",{"$f":"O305/12","v":142785.09166666667},1713421.1,"I.GIF.AQE",null,"Silvana Rodrigues dos Santos Rocha","Luiz Carlos Moreira                                                Márcia Mourão Moreira","Marisa de Lima Marques Nogueira","Marcela Soares Ferreira","SEI"]
["9462.912/25",9462912,"2320.01.0006678/2025-11","Santa Helena Multiserviços Ltda","Prestação de serviços de reforma dos telhados do Hemocentro de Uberlândia (Lote 04).","Não",null,"2025-05-06","2026-05-05",null,null,"05","2026",null,124000,"I.GIF.AQE",null,"Silvana Rodrigues dos Santos Rocha","Júlio Campos Franklin","Marcela Soares Ferreira",null,"SEI"]
["9346.729/22",9346729,"2320.01.0008812/2022-20","Sapra Landauer Serviço de Assessoria e Proteção Radiológica Ltda.","Prestação de serviço de monitoramento da radiação ionizante emitida no processo de irradiação de bolsas de sangue e hemocomponentes no contexto da segurança radiológica dos operadores e do quadro funcional do Hemocentro de Belo Horizonte da Fundação Hemominas.","Não",null,"2022-10-26","COTEP","2024-10-26","2025-10-25","10","2025","-",2499.84,"HBH.T.HMC",null,"Alessandro Moreira Ferreira","Larissa Inês Gomes Dau","Marcela Soares Ferreira","Adriana Aparecida Tavares Diniz","SEI"]
["9442.148/24",9442148,"2320.01.0009526/2024-39","Saraiva Correa Organizações Ltda.","Aquisição de lanche para o doador de sangue em complementação ao lanche seco (lote 01) e Aquisição de lanche para a Semana Nacional do Doador Voluntário de Sangue para o Hemonúcleo de Diamantina (Lote 02).","Não",null,"2024-11-14","2034-11-13","-",null,"11","2025",null,46116.38,"DIA.GAD",null,"jacqueline Kelly Peixoto","Alessandra Cristina Menezes Frattezi Santos","Marcela Soares Ferreira","Lizziane d'Ávila Pereira","SEI"]
["9261.271/20 ",9261271,"2320.01.0007487/2020-08","Scan Diagnóstica Indústria e Comércio Ltda - EPP","Aquisição de reagentes para testes imunohematológicos.","Não",null,"2020-08-25","2025-08-24","2024-08-25","2025-08-24","08","2025","-",32760,"T.GLA.CIH.DOA","Dirceu Albino Júnior","Michelle Teodoro Alves",null,null,null,"SEI"]
["9263.718/20",9263718,"2320.01.0017518/2020-92","Scan Diagnóstica Indústria e Comércio Ltda - EPP","Aquisição de reagentes para testes de imunohematologia (Lote 02).","Não",null,"2020-12-10","2025-12-09","2024-12-10","09/12/2025","12","2025","-",79660,"T.GLA.CIH.DOA","Paulo Henrique Desidério Freitas","Paulo Henrique Desidério Freitas",null,null,null,"SEI"]
["           9437.193/24\n\n ","           9437193\n\n","2320.01.0008135/2024-57","SCAN Diagnóstica Indústria e Comércio Ltda.","Aquisição de soros para a tipagem ABO/RhD de receptores.","Não",null,"            06/09/2024","  05/09/2025","-",null,"09","2025",null,66204.350000000006,"T.GLA.CIH",null,"Luciana Cayres Schmidt","Carolina Gonçalves Andrade","Lizziane d'Ávila Pereira","Marcela Soares Ferreira","SEI"]
["9349.208/22",9349208,"2320.01.0008703/2022-53","Selecionata Indústria de Alimentos Ltda.","Prestação de serviço de fornecimento de sanduíches naturais, de sabores diversos, com o refrigerador em comodato.","Sim",null,"2022-11-12","2027-11-11","2024-11-12","2025-11-11","11","2025",{"$f":"O312/12","v":26052},312624,"HBH.A.SGS.COP",null,"Hamilton Silva","Paula Maria Leão Mendes Roenick"," Maycon do Vale Silva"," Marcela Soares Ferreira","SEI"]
["9390.489/23",9390489,"2320.01.0001579/2023-47","SEME Serviços Especializados em Manutenção de Elevadores Ltda","Prestação de serviço de manutenção preventiva e corretiva em elevador e plataforma elevatória - Montes Claros/MG.","Não",null,"2023-07-28","2028-07-27","2024-07-28","2025-07-27","07","2025",2773.3333333333335,33280,"GAD.MOC.A.COM",null,"Daniel Nascimento Salgado","Nátaly Mariana Silva","Marcela Soares Ferreira","Marisa de Lima Marques Nogueira","SEI"]
["9286.809/21",9286809,"2320.01.0014750/2020-41","Sensorweb Serviços de Tecnologia da Informação S/A","Prestação de serviços especializados de monitoramento e registro automatizado de temperatura de equipamentos de refrigeração e de ambiente de temperatura controlada.","Sim",null,"2021-07-27","2026-07-26","2024-07-27","2025-07-26","07","2025",175127.9,2101534.7999999998,"DGI.ENC","João Raimundo Venâncio","Alexandre Vitor da Silva"," Felipe Garabini Antunes",null,null,"SEI"]
["9271.575/21",9271575,"2320.01.0014445/2020-31","Serquip - Tratamento de Resíduos MG Ltda","Prestação de serviço de coleta, transporte externo, tratamento e disposição final dos resíduos de saúde.","Não",null,"2021-05-01","2026-04-30","2025-05-01","2026-04-30","04","2026",91417.409999999989,1097008.92,"DGI.NZL","Jéssica Rodrigues Barbosa","Marcelo de Aguiar Gomes","Nilza de melo Pereira"," Emilene Gomes e Silva ","Marcela Soares Ferreira","SEI"]
["9374.636/23",9374636,"2320.01.0015931/2021-64","Serquip - Tratamento de Resíduos MG Ltda","Prestação de serviço de coleta, transporte, tratamento e disposição final ambientalmente correta dos resíduos resultantes de lâmpadas LED tubulares e de bulbo difusor, fluorescentes tubulares e compactas, com vapor de mercúrio e/ou demais componentes tóxicos, queimadas ou quebradas, e seus fragmentos de vidros, gerados pelas unidades da Fundação Hemominas.","Não",null,"2023-03-03","2028-03-02","2025-03-03","2026-03-02","03","2026",9911.9166666666661,118943,"I.GIF.AQE",null,"Jéssica Rodrigues Barbosa","Nilza de melo Pereira","Marcela Soares Ferreira","Marisa de Lima Marques Nogueira","SEI"]
["9469.647/25",9469647,"2320.01.0016782/2024-67","Serquip - Tratamento de Resíduos MG Ltda","Prestação de serviços de coleta, transporte e disposição final dos resíduos do grupo D (comum).","Sim",null,"2025-05-28","2035-05-27",null,null,"05","2026",null,22080,"HBH.A.SGS",null,"Hamilton Silva","Paula Maria Leão Mendes Roenick","Anna Luíza Leandro Fernandes Moreira","Marcela Soares Ferreira","SEI"]
["9433.853/24",9433853,"2320.01.0013038/2023-84","SIEMENS HEALTHCARE DIAGNÓSTICOS LTDA.","Aquisição de reagentes para testes de coagulação com sistema analítico em comodato.","Sim",null,"2024-07-24","2034-07-23","-",null,"07","2025",20416.541666666668,244998.5,"HBH.T.LHEM",null,"João Henrique Fonseca de Moura","Beatriz Nogueira de Carvalho","Lizziane d'Ávila Pereira","Maycon do Vale Silva","SEI"]
["9442.477/24",9442477,"2320.01.0016180/2024-25","Sigma-Aldrich Brasil Ltda.","Aquisição de reagente Filcoo-paque (Lote 10).","Não",null,"2024-12-09","2025-12-08",null,null,"12","2025",null,3182,"T.GLA.HLA",null,"Felipe Carlos Brito de Souza","Nathália Gomide Cruz","Lizziane d'Ávila Pereira","Marcela Soares Ferreira","SEI"]
["9417.866/24",9417866,"2320.01.0001379/2024-12","SIMPRESS COMERCIO LOCACAO E SERVICOS LTDA","contratação de serviços de outsourcing de impressão, sob demanda, futura e eventual, conforme especificações, exigências e quantidades estimadas.","não"," SIM           Nº doc : SEI -91742292 ","2024-04-13","2028-04-12","-",null,"04","2027","-",1628400.95,"I.GTC.ITS",null," Ademar José Vieira","Fabrine Juliana Fabricio Costa","Maycon do Vale Silva","Marisa de Lima Marques Nogueira","SEI"]
["9400.372/23",9400372,"2320.01.0010892/2021-26","Sofis Informática Ltda","Prestação de serviço de implantação de Software de Gestão Laboratorial.","Não",null,"2023-11-22","2028-11-21","2024-11-22","2025-11-21","11","2025",{"$f":"O321/12","v":48470.720000000001},581648.64000000001,"TEC                                  CETEBIO                        I.GTC / I.GTC.ADS",null,"Maria Lúcia Soares de Moura\nAdriana Lucia dos Santos","André Belisário","Lizziane d'Ávila Pereira","Marcela Soares Ferreira","SEI"]
["9470.672/25",9470672,"232001.0002815/2025-37","Sofis Informática Ltda","Prestação de serviço de manutenção e suporte dos sistemas de gerenciamento do ciclo do sangue, HEMOTE PLUS.","Não",null,"2025-06-24","2035-06-23",null,null,"06","2026",null,2619204,"I.GTC.ADS",null,"Adriana Lúcia dos Santos","Fernando Augusto Alves de Souza","Anna Luíza Leandro Fernandes Moreira","Marcela Soares Ferreira","SEI"]
["9345.620/22",9345620,"2320.01.0008056/2019-71","Sompo Seguros S.A.","Prestação de seguro patrimonial.","Não","SIM","2022-09-09",null,"2024-09-09","2025-09-08","09","2025",{"$f":"O323/12","v":2350.6033333333335},28207.24,"DGI.NZL",null,"Marcelo de Aguiar Gomes","Nilza de Melo Pereira","Adriana Aparecida Tavares Diniz","Marcela Soares Ferreira","SEI"]
["9326.075/22","9326075      9325354","2320.01.0012700/2021-98","Spectrolab Tecnologia Científica Ltda.","Prestação de serviço de manutenção e reparos nos equipamentos Cryoextra e Cryoplus4.","Não",null,"2022-03-24","2027-03-23","2025-03-24","2026-03-23","03","2026",{"$f":"O324/12","v":23246.296666666665},278955.56,"GAD.CETEBIO",null,"Maria Lúcia Soares de Moura","Antônio Ferreira de Oliveira Filho","Marisa de Lima Marques Nogueira","Renata Azzi Júdice","SEI"]
["9265.564/20",9265564,"2320.01.0009682/2020-10","Spectrolab Tecnologia Científica Ltda."," Prestação de serviço de manutenção em equipamentos de refrigeração, com fornecimento de peças.","Não",null,"2021-03-03","2026-03-02","2025-03-03","2026-03-02","03","2026",205676.46083333332,2468117.5299999998,"DGI.ENC","Felipe Silva Teixeira","Felipe Silva Teixeira",null,null,null,"SEI"]
["9408.851/24",9408851,"2320.01.0005830/2023-21","Spectrolab Tecnologia Científica Ltda.","Prestação de serviços de manutenção em freezers de congelamento e armazenamento de células.","Não",null,"2024-02-03","2029-02-02","2025-02-03","2026-02-02","02","2026",25034,300408,"GAD.CETEBIO",null,"Maria Lúcia Soares de Moura","Antônio Ferreira de Oliveira Filho","Emilene Gomes e Silva","Marcela Soares Ferreira","SEI"]
["9441.585/24",9441585,"2320.01.0005624/2024-51","Speedlabor Diagnósticos Ltda - EPP.","Aquisição de sistema analítico completo, com equipamento em comodato e reagentes para identificação e quantificação de hemoglobinas \"anormais\".","Sim",null,"2024-11-07","2034-11-06","-",null,"11","2025",null,116380,"HBH.T.LHEM",null,"Beatriz Nogueira de Carvalho APOSENTOU","João Henrique Fonseca de Moura","Lizziane d'Ávila Pereira","Marcela Soares Ferreira","SEI"]
["9368.352/23",9368352,"2320.01.0004495/2022-82","Tecnogera - Locação e Transformação de Energia S/A","Locação de equipamentos de geração e distribuição de energia.","Não",null,"2023-01-07","2027-01-06","-",null,"01","2027",58490.207499999997,701882.49,"DGI.ENC",null,"Adilson Meireles Pacheco","Alexandre Vitor da Silva","Lizziane d'Ávila Pereira","Marcela Soares Ferreira","SEI"]
["9287.335/21",9287335,"2320.01.0013735/2020-92","Terumo BCT Tecnologia Médica Ltda","Aquisição de kits para realização de procedimento de aférese.","Sim",null,"2021-07-24","2026-07-23","2024-07-24","2025-07-23","07","2025",51214.766666666663,614577.19999999995,"TEC",null,"Fabiana Chagas Camargos Piassi",null,"Marisa de Lima Marques Nogueira","Marcela Soares Ferreira","SEI"]
["9287.336/21",9287336,"2320.01.0013735/2020-92","Terumo BCT Tecnologia Médica Ltda","Locação de equipamentos para: realização de Leucaférese/ plasmaférese/eritrocitaférese terapêutica, com eficiência média de coleta acima de 45% e ​realização de coleta de plaquetas por aférese e coleta de hemácias​.","Sim",null,"2021-07-24","2025-07-23","2024-07-24","2025-07-23","07","2025",29825.45,357905.4,"DGI.ENC",null,"Dayseanne Rodrigues Tomaz","Pamela Lorrana freitas Marques","Marisa de Lima Marques Nogueira","Marcela Soares Ferreira","SEI"]
["9293.010/21",9293010,"2320.01.0013063/2021-94","Terumo BCT Tecnologia Médica Ltda","Locação de equipamento para ​realização de coleta de plaquetas por aférese e coleta de hemácias (Lote 02)​.","Sim",null,"2021-09-30","2025-09-29","2024-09-30","2025-09-29","09","2025",26553.67,318644.03999999998,"DGI.ENC",null,"Dayseanne Rodrigues Tomaz","Pamela Lorrana freitas Marques","Marisa de Lima Marques Nogueira","Marcela Soares Ferreira","SEI"]
["9293.014/21",9293014,"2320.01.0013063/2021-94","Terumo BCT Tecnologia Médica Ltda","Aquisição de kits para realização de procedimento de aférese (Lote 02).","Sim",null,"2021-09-30","2026-09-29","2024-09-30","2025-09-29","09","2025","-",3230055.98,"TEC",null,"Fabiana Chagas Camargos Piassi",null,"Marisa de Lima Marques Nogueira","Marcela Soares Ferreira","SEI"]
["9470.326/25",9470326,"2320.01.0007809/2024-32","Tesla Instalações Elétricas Ltda.","Prestação de serviços de reforma das instalações elétricas das Unidades de Uberaba e Juiz de Fora.","Não",null,"2025-06-13","2026-06-12",null,null,"06","2026",null,1802000,"I.GIF.AQE",null,"Jéssica Rodrigues Barbosa","Leila Guedes Alvim","Anna Luíza Leandro Fernandes Moreira","Marcela Soares Ferreira","SEI"]
["9459.815/25",9459815,"2320.01.0006152/2024-54","Thiago Arouca Araújo","Prestação de serviços de instalação de  películas com fornecimento de material e mão de obra para o Hemocentro Regional de Montes Claros.","Não",null,"2024-04-11","COTEP",null,null,"04","2026",null,14416.24,"MOC.GAD",null,"Daniel Nascimento Salgado","Nátaly Mariana Silva","Marcela Soares Ferreira","Marcela Soares Ferreira","SEI"]
["9429.660/24",9429660,"2320.01.0012627/2023-26","Ticket Gestão em Manutenção EZC S/A.","Serviço de gestão e manutenção preventiva e corretiva da frota de veículos.","Não",null,"2024-11-15","2029-11-14","-",null,"11","2027",null,413843.84,"G.GLQ.PRT. TRANSPORTE",null,"Pablo Ruas dos Santos","Anastas Falcão Quirino Chaves","Maycon do Vale Silva","Lizziane d'Ávila Pereira","SEI"]
["9402.587/2023",9402587,"2320.01.0016929/2023-78","Tim S.A","contratação de serviço de telefonia fixa comutada - LDI (Longa Distância Internacional), lote 15",null,null,"2023-12-23","2028-12-22","2024-12-23","2025-12-22","12","2025",null,8778.24,"I.GTC.ITS",null,"Daniel Eustáquio Coutinho","Fabrine Juliana Fabricio Costa","Marisa de Lima Marques Nogueira","Emilene Gomes e Silva","SEI"]
["9456.372/25",9456372,"2320.01.0001113/2025-13","Tim S.A.","Serviço Móvel Pessoal (SMP), englobando tráfego de dados e acesso à Internet, serviços telefônicos Modalidade Locais, Modalidade Longa Distância Nacional, para ligações exclusivamente originadas dos terminais móveis di Plano Corporativo, e fornecimento dos equipamentos necessários.","Sim",null,"2025-03-27","2030-09-26",null,null,"09","2027",null,257097,"I.GTC.ITS",null,"Renato Vianna do Valle Júnior","Daniel Eustáquio Coutinho","Marcela Soares Ferreira","Lizziane d'Ávila Pereira","SEI"]
["9261.685/20",9261685,"2320.01.0013764/2020-85","Transat Telecomunicações Via Satélite Eireli - (Contrato corporativo)","Contratação de serviços de telecomunicações necessários à implantação, operação, manutenção e gerenciamento de Rede IP Multisserviços abrangendo os Municípios do Estado de Minas Gerais, Lote 04.","Não",null,null,null,"2025-05-28","2026-05-26","05","2026",{"$f":"O338/12","v":15922.561666666666},191070.74,"I.GTC.ITS","Fabrine Juliana Fabrício Costa","Fabrine Juliana Fabricio Costa",null,null,null,"SEI"]
["9437.154/24",9437154,"2320.01.0004077/2024-13","Veolia Water Technologies Brasil Ltda","Prestação de Serviço de locação de sistema de purificação de água","Não",null,"2024-09-12","2034-09-11","-",null,"09","2025",32946,395352,"DGI.ENC",null,"João Paulo dos Santos Barbosa","Alexandre Vitor da Silva","Marcela Soares Ferreira","Júlia Carolina Soares","SEI"]
["9443.594/24",9443594,"2320.01.0013220/2024-17","Vibra Energia  S.A                                           (Contrato Corporativo)","Fornecimento de combustível (gasolina comum, óleo diesel subtipo S-10 e álcool automotivo/etanol hidratado) nos postos de abastecimento que compõem a rede de postos próprios do Estado de Minas Gerais.","Não",null,"2024-12-02",null,null,null,"12","2025",null,422182.6,"G.GLQ.PRT.TRANSPORTE",null,"Pablo Ruas dos Santos","Anastas Falcão Quirino Chaves","Marcela Soares Ferreira","Júlia Carolina Soares","SEI"]
["9389.151/23",9389151,"2320.01.0009673/2022-53","Voetur Turismo e Representações Ltda.","Prestação de serviços de reserva, emissão, remarcação ou alteração e entrega de bilhetes de passagens aéreas nacionais e internacionais, e rodoviárias nacionais, por atendimento remoto.","Não",null,"2023-07-08","2025-07-07","2024-07-08","2025-07-07","07","2025",{"$f":"O341/12","v":33135.303333333337},397623.64,"G.GLQ.PRT. TRANSPORTE\nG.GLQ.PRT. PROTOCOLO",null,"Pablo Ruas dos Santos","Dorian Daisy Sislan dos Santos Coelho","Marcela Soares Ferreira","Marisa de Lima Marques Nogueira","SEI"]
["9445.722/24",9445722,"2320.01.0014970/2024-06","Voetur Turismo e Representações Ltda.","Compra de passagens aéreas e rodoviárias.","Não",null,"2024-12-16","2034-12-15",null,null,"12","2025",null,727109.19,"G.GLQ.PRT. PROTOCOLO",null,"Pablo Ruas dos Santos","Dorian Daisy Sislan dos Santos Coelho","Marcela Soares Ferreira","Lizziane d´Ávila Pereira","SEI"]
["9245.721/20",9245721,"2320.01.0004939/2019-34","WF Tecnologia CientÍfica Ltda.","Prestação de Serviço de  manutenção, reparo, conservação e adaptação em equipamentos e instrumentos médicos","Não",null,"2020-04-08","2025-04-07","2025-04-08","2025-10-07","'10","2025",{"$f":"O343/12","v":58104.473333333335},697253.68,"DGI.ENC","Eduardo da Silva Oliveira ","Eduardo da Silva Oliveira ",null,null,null,"SEI"]
["9424.417/24",9424417,"2320.01.0010469/2023-92","WF Tecnologia CientÍfica Ltda"," Prestação de serviços de Manutenção Preventiva Mensal/corretivas necessárias para as 2(duas) Câmaras Frigoríficas +4C e -30°C","Não",null,"2024-05-03",null,"2025-05-03","2026-05-02","05","2026",{"$f":"O344/12","v":15250.29},183003.48,"UDI.GAD                   DGI",null,"Márcia Regina Luis"," Renata Lea Silva Souza "," Maycon do Vale Silva","Marisa de Lima e Marques Nogueira","SEI"]
["9447.522/25",9447522,"2320.01.0001006/2024-92","WF TECNOLOGIA CIENTÍFICA LTDA","Prestação de serviço de manutenção preventiva e calibração semestral, corretivas ilimitadas em Aparelhos Doppler Transcraniano para diagnóstico médico.","Não",null,"2025-01-23","2035-01-22",null,null,"01","2026",null,141388.20000000001,"DGI.ENC",null,"Wesley Rodrigues Tomaz","Felipe Silva Teixeira","Kele Adriane de Rezende Maycon do Vale Silva","Simone Chaves Miranda Esposito Janete Alves Mamedes","SEI"]
["9346.009/22",9346009,"2320.01.0008367/2022-07","White Martins Gases Industriais Ltda","Aquisição de nitrogênio medicinal liquefeito, com tanque em comodato para o CETEBIO da Fundação Hemominas","Sim",null,"2022-10-21","2027-10-20","2024-10-21","2025-10-20","10","2025","-",209400,"GAD.CETEBIO",null,"Maria Lúcia Soares de Moura","Luciana de Almeida Costa","Dallila Rodrigues Júlia","Marcela Soares Ferreira","SEI"]
["9441.312/2025",9441312,"2320.01.0010298/2024-50","WHITNEY COMERCIAL LTDA","Aquisição de gêneros alimentícios (Lote 01) para o lanche dos doadores no Hemonúcleo de Divinópolis da Fundação Hemominas","não",null,"2025-01-06","2026-01-05",null,null,"01","2026",null,154796.79999999999,"Hemonucleo de Divinópolis",null,"Nilba Valeria Pinheiro de Oliveira - Presidente","Islaine Armstrong de Araújo Oliveira - Nayara Suelem Silva  - Lorena Prezotti Rodrigues"," Lizziane D’ Avila Pereira",null,"SEI"]
["9412.818/24",9412818,"2320.01.0001243/2023-98","Xertica Brasil Ltda","Prestação de serviço especializado em desenvolvimento de sistemas de informação para viabilização de projeto de robô captador de doadores.","Não",null,"2024-02-29","2028-02-28","2025-03-01","2026-02-28","02","2026",{"$f":"O348/12","v":40815.416666666664},489785,"I.GTC",null,"André Luiz Pereira","Adriana Lúcia dos Santos","Emilene Gomes e Silva","Lizziane d´Ávila Pereira","SEI"]
["9294.644/21",9294644,"2320.01.0013617/2021-74","ZAP MUSIC E DEDETIZADORA LTDA","Prestação de serviço de  limpeza e tratamento de caixas de água e reservatórios (Lotes 03 e 06).","Não",null,"2021-11-06","2026-11-05","2024-11-06","2025-11-05","11","2025",428.46,5141.5,"GAD.UDI      GAD.MÇU",null,"Márcia Regina Luis (Lote 03)                                Gulliver Fabrício Vieira Rocha (Lote 06)","Maria Cristina Gomes de Araújo Botelho               Maria José Moreira","Marisa de Lima Marques Nogueira","Renata Azzi Júdice","SEI"]
["9337.915/22",9337915,"2320.01.0001782/2022-98","ZAP MUSIC E DEDETIZADORA LTDA","Prestação de serviço de limpeza e tratamento de caixas d’água e reservatórios, com periodicidade semestral, instalados no Hemocentro Regional de Montes Claros da Fundação Hemominas.","Não",null,"2022-06-04","COTEP","2025-06-04","2026-06-03","06","2026",null,2195.66,"GAD.MOC.A.COM",null,"Daniel Nascimento Salgado","Eliane Gonçalves David","Marisa de Lima Marques Nogueira",null,"SEI"]
["9447.300/2024",9447300,"2320.01.0002043/2024-29","MEDICAL SAVE LOCAÇÃO DE AMBULÂNCIAS LTDA - ME - COTEP","Contratação dos serviços de remoção de pacientes adultos e pediátricos (exceto neonatologia) atendidos, doadores atendidos e servidores do Hemocentro de Belo Horizonte","Não",null,"2024-12-28","27/12/2034 (COTEP)",null,null,"12","2025"," 10.560,00 ","126.720.00","HBH.T.AMB.MULT",null,"Denise Soares Zouain","Eduarda A. Maciel Wakabayashi","Marcela Soares Ferreira","Lizziane d'Ávila Pereira","SEI"]
["9447.665/2025",9447665,"2320.01.0000716/2025-62","Kovalent do Brasil Ltda","aquisição de reagentes para testes imunohematológicos e moleculares da rotina de pacientes e doadores, ","Não",null,"2025-01-17","2026-01-16",null,null,"01","2026",null," 29.012,00 ","T.GLA.CIH",null,"Luciana Cayres Schmidt","Fabrizzio de Oliveira Dias","Lizziane d'Ávila Pereira","Marcela Soares Ferreira","SEI"]
[null,null,"VIGÊNCIA 03 MESES"]

{"sheet":"Plan1","index":1,"n_rows":30,"n_cols":8,"rows_kept":30,"cut":false,"hidden":false,"merged":[[2,5,2,7],[0,1,0,7],[1,1,1,7],[2,1,2,3],[10,1,10,3],[29,1,29,2],[2,4,27,4],[22,1,22,3],[15,1,15,3],[9,1,9,3],[21,1,21,3],[16,1,16,3]]}
[null,"Quantitativo de Contrato por Diretoria/Gerência"]
[]
[null,"ATE",null,null,null,"Unidades Regionais"]
[null,"ATE/GRH/GDT",1,402775,null,"ALP",2,49918.59]
[null,"GDI",1,368496.8,null,"BET",1,12958.7]
[null,"GFC",1,108800,null,"CET",11,953663.94]
[null,"GIF",17,898247.5,null,"DIV",6,175890.58]
[null,"GTC",24,17882757.219999999,null,"GOV",11,600794.82999999996]
[null,"Total",{"$f":"SUM(C4:C8)","v":44},{"$f":"SUM(D4:D8)","v":19661076.52},null,"HBH",17,2010237.16]
[null,null,null,null,null,"HJK",1,13990.08]
[null,"PGF",null,null,null,"ITU",3,69450.080000000002]
[null,"GLG",76,32834812.059999999,null,"JFO",9,568131.01]
[null,"GRH",11,2144089.66,null,"MCU",5,194502.13]
[null,"GSO",77,26398529.680000003,null,"MOC",17,616636.25]
[null,"Total",{"$f":"SUM(C12:C14)","v":164},{"$f":"SUM(D12:D14)","v":61377431.400000006},null,"PAL",4,151150.99]
[null,null,null,null,null,"PAS",4,121126.39999999999]
[null,"PRE",null,null,null,"PMI",4,33479.75]
[null,"ACS",3,1610117.6800000002,null,"PNO",7,131426]
[null,"ASQ",1,64795.03,null,"POC",2,52846.25]
[null,"PRO",1,520,null,"SJR",4,75323.600000000006]
[null,"Total",{"$f":"SUM(C18:C20)","v":5},{"$f":"SUM(D18:D20)","v":1675432.7100000002},null,"SLA",8,113310.9]
[null,null,null,null,null,"UDI",7,332046.03999999998]
[null,"TEC",null,null,null,"URA",9,212247.09]
[null,"GCQ",1,117883.92,null,"TOTAL",{"$f":"SUM(G4:G23)","v":132},{"$f":"SUM(H4:H23)","v":6489130.3700000001}]
[null,"GDT",2,1673968.56]
[null,"GLA",15,13413172.049999999]
[null,"GSA (CAT)",9,3223039.6199999996]
[null,"Total",{"$f":"SUM(C24:C27)","v":27},{"$f":"SUM(D24:D27)","v":18428064.149999999}]
[]
[null,"Fonte: FPOP.G.GPO.CCO 01 VERSÃO 04 - 12/07/2018"]